Cogmind - Beta 11 X11 @@@ ROGUE MODE // 2022.03.05 @ 14:55:05 Player: cptwinky Result: Destroyed by B-99 Colossus with Multirail Performance ------------- Evolutions (9) 4500 Regions Visited (35) 7000 Robots Destroyed (335) 1675 Value Destroyed (15636) 15636 Prototype IDs (86) 1720 Alien Tech Used (14) 2800 Bonus (25499) 25499 TOTAL SCORE: 58830 Bonus ------- Triggered High Security 500 Triggered Max Security 2000 High Alert Combat Kills 7929 Follower Combat Kills 772 Met Data Miner 300 Destroyed Z-Imprinter 1000 Met Zhirov 300 Met Warlord at Base 500 MAIN.C Attacked Warlord 500 Used Core Reset Matrix 3000 Hacked Protovariant 1000 Scanned by Researcher 500 Integrated Exoskeleton 5000 Destroyed MAIN.C Guards 500 Met Warlord at Command 2000 Friendly Fire -302 Cogmind --------- Core Integrity 0/1600 Matter 348/425 Energy 244/250 System Corruption 12% Temperature Cool (0) Movement Walking (30) Location -1/Command Parts ------- > --- POWER (1) -------- Micro Antimatter Reactor > --- PROPULSION (3) --- Sigix Exoskeleton > --- UTILITY (4) ------ Advanced Cooling System Advanced Target Analyzer Armor Integrity Analyzer Layered Medium Armor Plating > --- WEAPON (3) ------- Sigix Sheargun Sigix Sheargun Fusion Bomb Launcher > --- INVENTORY (5) ---- Transdimensional Reconstructor Compact Linear Accelerator Graviton Cannon Powered Hammer Plasma Lance Peak State ------------ > --- POWER ------------ Micro Fission Core Micro Antimatter Reactor > --- PROPULSION ------- Diametric Drive Cooled Impulse Thruster Impulse Thruster Array Impulse Thruster Array Impulse Thruster Array > --- UTILITY ---------- Medium Storage Unit Experimental Sensor Array Advanced Signal Interpreter Long-range Terrain Scanner Surveybot 24 Chip Advanced Target Analyzer Advanced Cloaking Device Light Regenerative Plating Phase Redirector Makeshift Hacking Suite Improved Hacking Suite Improved Hacking Suite > --- WEAPON ----------- Enhanced Nova Cannon Plasma Lance > --- INVENTORY -------- Zionite Biocell Transdimensional Reconstructor Transdimensional Reconstructor High-powered Transdimensional Reconstructor Integrity Redistributor Subatomic Replicator Terrabomb Sigix Sheargun Sigix Sheargun Fusion Bomb Launcher [Rating: 188] Favorites ----------- Power Micro Fission Core Engine Improved Ion Engine Power Core Micro Fission Core Reactor Micro Antimatter Reactor Propulsion Improved Treads Treads Improved Treads Leg Sigix Exoskeleton Hover Unit Zionite Glidesys I Flight Unit Cooled Cesium-ion Thruster Utility Makeshift Hacking Suite Device Experimental Sensor Array Storage Medium Storage Unit Processor Advanced Signal Interpreter Hackware Makeshift Hacking Suite Protection Medium Armor Plating Artifact Phase Redirector Weapon Kinetic Spear Energy Gun Sigix Sheargun Energy Cannon Advanced Plasma Cannon Ballistic Gun Gauss Rifle Ballistic Cannon Light Cannon Launcher Mini Grenade Launcher Impact Weapon Heavy Flail Piercing Weapon Kinetic Spear Special Melee Weapon Datajack Build | -11 -10 -10 -9 -9 -8 -7 -7 -7 -7 -7 -6 -6 -6 -6 -6 -5 -5 -5 -5 -5 -5 -5 -4 -4 -4 -4 -4 -3 -3 -3 -2 -2 -2 -1 -1 ------- Run | Scr Mat Min Mat Min Mat Fac Low Low Zio Dee Pro Fac Low Low Dat Pro Fac Was Fac Upp Upp Zhi Pro Fac Upp Upp War Pro Res Qua Res Tes Sec Acc Com Slots Evolved 18 | . . . 2 . 2 2 . . . . . 2 . . . . 2 . . . . . . 2 . . . . 2 . 2 . . 2 . Power 1 | . . . . . . . . . . . . . . . . . 1 . . . . . . . . . . . . . . . . . . Propulsion 6 | . . . 1 . . 1 . . . . . . . . . . 1 . . . . . . 1 . . . . 1 . 1 . . . . Utility 10 | . . . 1 . 2 1 . . . . . 2 . . . . . . . . . . . 1 . . . . 1 . 1 . . 1 . Weapon 1 | . . . . . . . . . . . . . . . . . . . . . . . . . . . . . . . . . . 1 . Parts Attached 495 | 2 2 2 24 4 47 44 5 9 7 33 1 33 5 7 3 7 30 1 24 11 23 3 11 20 8 4 7 12 6 7 11 13 18 21 30 Power 25 | . . . 3 . 3 2 . . . 2 . 1 . . . 1 6 . 1 . 1 . . . . . . . . 1 . 1 . 1 2 Engine 7 | . . . 3 . 2 . . . . . . . . . . 1 . . . . . . . . . . . . . . . . . 1 . Core 13 | . . . . . 1 2 . . . 1 . 1 . . . . 6 . 1 . 1 . . . . . . . . . . . . . . Reactor 5 | . . . . . . . . . . 1 . . . . . . . . . . . . . . . . . . . 1 . 1 . . 2 Propulsion 62 | 2 . . 9 . 12 10 . . . 6 . 7 1 1 . . 6 . . . . . 1 2 . . 2 . 1 1 1 . . . . Treads 20 | 2 . . 9 . 9 . . . . . . . . . . . . . . . . . . . . . . . . . . . . . . Leg 4 | . . . . . 3 . . . . 1 . . . . . . . . . . . . . . . . . . . . . . . . . Wheel . | . . . . . . . . . . . . . . . . . . . . . . . . . . . . . . . . . . . . Hover 7 | . . . . . . . . . . 5 . 2 . . . . . . . . . . . . . . . . . . . . . . . Flight 31 | . . . . . . 10 . . . . . 5 1 1 . . 6 . . . . . 1 2 . . 2 . 1 1 1 . . . . Utility 262 | . 2 . 9 3 18 20 2 8 6 18 1 10 2 1 1 3 11 1 16 6 14 3 8 11 5 2 4 8 5 4 6 6 18 15 15 Device 132 | . 1 . 2 1 3 15 1 6 2 6 1 1 1 1 . 2 6 1 11 3 10 . 7 6 2 2 2 4 3 . 4 5 12 8 3 Storage 10 | . 1 . 1 . . 1 . . . 3 . 1 . . . . . . 1 . . 1 . 1 . . . . . . . . . . . Processor 26 | . . . . 1 6 1 . . 3 . . . . . . . . . 1 1 . . . . . . . . 1 . . . 2 2 8 Hackware 20 | . . . . . 3 . . . 1 . . 5 . . . . . . . . . . . . 1 . . . 1 2 . . . 5 2 Protection 69 | . . . 6 1 6 3 1 2 . 9 . 3 1 . 1 1 5 . 3 2 4 2 1 4 2 . 2 4 . 1 . 1 2 . 2 Artifact 5 | . . . . . . . . . . . . . . . . . . . . . . . . . . . . . . 1 2 . 2 . . Weapon 146 | . . 2 3 1 14 12 3 1 1 7 . 15 2 5 2 3 7 . 7 5 8 . 2 7 3 2 1 4 . 1 4 6 . 5 13 Energy Gun 13 | . . . . . . . . . . 2 . 4 . 2 . . . . . . . . . . . . . . . . . 2 . 3 . Energy Cannon 12 | . . . . . . . . . . 1 . . . . . . . . 1 . 1 . 1 3 1 1 . 1 . . 1 1 . . . Ballistic Gun 17 | . . . . 1 9 . . . . 1 . 2 . 1 . 1 1 . . . . . . . . . . . . . . 1 . . . Ballistic Cannon 15 | . . 2 2 . . . 1 . . 1 . 1 1 . . . 1 . 2 . 1 . . . . . . . . . . . . . 3 Launcher 27 | . . . 1 . 5 3 1 . . 1 . 1 . . . . 1 . . 2 2 . . . 1 . 1 1 . . . . . 2 5 Special Weapon . | . . . . . . . . . . . . . . . . . . . . . . . . . . . . . . . . . . . . Impact Weapon 8 | . . . . . . 5 1 1 . . . . . . . . . . . . . . . . . . . . . . . . . . 1 Slashing Weapon . | . . . . . . . . . . . . . . . . . . . . . . . . . . . . . . . . . . . . Piercing Weapon 41 | . . . . . . . . . 1 1 . 5 1 2 1 1 3 . 3 2 4 . 1 3 1 1 . 2 . 1 2 2 . . 4 Special Melee Weapon 13 | . . . . . . 4 . . . . . 2 . . 1 1 1 . 1 1 . . . 1 . . . . . . 1 . . . . Unidentified Prototypes 36 | . . . . . . 1 . . 4 13 . 1 . . . . 1 . . . . 3 . . . . 2 . . . 1 4 1 1 4 Parts Lost 31 | . . . 2 . 12 . . . 1 2 . 1 . . 2 . 4 . . . . . 2 . . . . 2 . . . . 1 1 1 Power 5 | . . . . . 1 . . . . 1 . . . . 1 . 1 . . . . . . . . . . 1 . . . . . . . Propulsion 8 | . . . . . 4 . . . . . . 1 . . . . 2 . . . . . 1 . . . . . . . . . . . . Utility 13 | . . . 2 . 5 . . . 1 1 . . . . . . 1 . . . . . . . . . . . . . . . 1 1 1 Weapon 5 | . . . . . 2 . . . . . . . . . 1 . . . . . . . 1 . . . . 1 . . . . . . . Highest Loss Streak 6 | . . . 1 . 6 . . . 1 1 . 1 . . 2 . 4 . . . . . 1 . . . . 1 . . . . 1 1 1 To Critical Strikes . | . . . . . . . . . . . . . . . . . . . . . . . . . . . . . . . . . . . . Average Slot Usage (%) 92 | . 85 100 96 100 96 91 92 92 91 86 91 95 93 94 99 92 93 94 93 93 93 91 92 90 89 89 91 91 81 90 86 85 83 75 78 Engine 3 | . 14 14 11 11 6 . . . . . . . . . . 2 . . . . . . . . . . . . . 2 . . . 7 . Core 4 | . . . . . 2 7 7 7 7 6 . 2 6 6 5 . 8 11 10 11 10 11 11 10 10 10 10 9 4 4 4 4 3 . . Treads 9 | . 28 28 32 33 21 . . . . . . . . . . . . . . . . . . . . . . . . . . . . . . Leg 1 | . . . . . 5 . . . . . . . . . . . . . . . . . . . . . . . . . . . . 9 9 Hover 1 | . . . . . . . . . . 5 30 20 . . . . . . . . . . . . . . . . . . . . . . . Flight 13 | . . . . . . 29 30 30 30 24 . 4 26 25 26 26 24 23 23 23 23 23 23 23 21 21 23 26 23 23 21 21 19 . . Device 5 | . . 14 2 1 . 6 7 6 6 4 6 5 5 6 5 5 4 5 4 3 3 . 3 8 7 9 9 5 9 8 6 6 11 15 7 Storage 6 | . 14 14 11 11 9 7 7 7 7 2 7 5 6 6 6 6 5 5 5 5 5 5 5 5 5 5 5 5 4 4 4 4 3 . . Processor 8 | . . . . 7 14 6 7 7 11 12 7 6 6 6 6 6 5 5 9 11 11 11 11 10 10 10 10 10 9 9 8 8 7 1 16 Hackware 15 | . . . . . 8 23 23 23 18 8 7 26 33 33 33 33 29 29 24 23 23 23 23 21 21 21 21 21 21 23 21 21 18 15 5 Protection 5 | . . . 16 12 9 . . . . 13 15 5 . . . . . . . 1 1 2 1 1 2 . . 4 . . 1 1 1 . 2 Energy Gun 1 | . . . . . . . . . . 1 . 3 . 1 5 . . . . . . . . . . . . . . 1 . . 1 26 20 Ballistic Gun 4 | . 28 18 . 8 17 . . . . . 7 1 . . . 2 . . . . . . . . . . . . . . . . . . . Ballistic Cannon 3 | . . 9 21 13 . . 3 . . . . . . . . . . . . . . . . . . . . . . . . . . . 2 Piercing Weapon 1 | . . . . . . . . . 4 1 . 2 6 5 5 3 4 5 4 4 4 5 5 4 5 . . 3 . 2 3 3 3 . . Special Melee Weapon 1 | . . . . . . 2 . . . . . . . . . 2 4 5 4 4 5 5 4 4 5 5 5 2 . . . . . . . Naked Turns . | . . . . . . . . . . . . . . . . . . . . . . . . . . . . . . . . . . . . Heaviest Build 71 | 11 27 30 71 68 68 21 29 22 20 36 36 36 25 25 26 25 36 23 34 32 32 27 27 36 35 35 35 35 29 53 57 60 62 46 44 Greatest Support 69 | 40 40 40 69 69 69 21 20 26 20 48 48 48 26 26 26 26 33 31 40 31 31 31 40 42 42 42 43 49 45 54 62 65 65 60 60 Greatest Overweight (x) 4 | . . . 1 . 2 1 1 1 . 1 . 3 1 . . 1 4 . 1 1 1 . . . . . . . . . . . . . . Average Overweight (x) . | . . . . . . . . . . . . . . . . . . . . . . . . . . . . . . . . . . . . Largest Inventory Capacity 20 | 8 15 15 20 20 20 20 10 10 10 10 10 10 10 10 10 10 10 10 10 10 10 10 10 10 10 10 10 10 10 10 10 10 10 5 5 Average Capacity 12 | 8 10 15 18 20 20 10 10 10 10 6 10 9 10 10 10 10 10 10 10 10 10 10 10 10 10 10 10 10 10 10 10 10 9 5 5 Most Carried 20 | 6 11 15 20 20 20 19 10 10 10 10 10 10 10 10 10 10 10 10 10 10 10 10 10 10 10 10 10 10 10 10 10 10 10 5 5 Average Carried 12 | 6 7 13 18 19 19 10 9 9 10 6 10 9 10 9 9 9 9 9 9 9 9 9 8 9 9 10 9 10 9 9 9 9 9 4 3 Final Capacity 20 | 8 15 15 20 20 20 10 10 10 10 10 10 10 10 10 10 10 10 10 10 10 10 10 10 10 10 10 10 10 10 10 10 10 5 5 5 Final Carried 20 | 6 11 15 20 20 19 10 10 10 10 10 10 10 10 10 10 10 10 9 9 10 10 10 10 10 10 10 10 10 10 10 10 10 5 5 5 Class Distribution -------------------- 29% | Mutant 23% | Hacker-Sprinter 14% | Hacker-Mutant 6% | Wizard-Sprinter 6% | Alien-Sigix 5% | Hacker-Scout 5% | Wizard-Mutant 3% | Wizard-Scout 3% | Sprinter Dominant Class ---------------- Mutant | -10/Materials Mutant | -10/Mines Mutant | -9/Materials Mutant | -9/Mines Mutant | -8/Materials Hacker-Sprinter | -7/Factory Hacker-Sprinter | -7/Lower Caves Hacker-Sprinter | -7/Lower Caves Hacker-Sprinter | -7/Zion Sprinter | -7/Deep Caves Scavenger-Mutant | -6/Proximity Caves Hacker-Mutant | -6/Factory Wizard-Mutant | -6/Lower Caves Wizard-Mutant | -6/Lower Caves Wizard-Mutant | -6/Data Miner Wizard-Mutant | -5/Proximity Caves Wizard-Sprinter | -5/Factory Wizard-Sprinter | -5/Waste Hacker-Sprinter | -5/Factory Hacker-Sprinter | -5/Upper Caves Hacker-Sprinter | -5/Upper Caves Hacker-Sprinter | -5/Zhirov Hacker-Sprinter | -4/Proximity Caves Hacker-Scout | -4/Factory Hacker-Scout | -4/Upper Caves Hacker-Scout | -4/Upper Caves Hacker-Scout | -4/Warlord Hacker-Sprinter | -3/Proximity Caves Wizard-Scout | -3/Research Wizard-Scout | -3/Quarantine Wizard-Scout | -2/Research Wizard-Sprinter | -2/Testing Wizard-Ninja | -2/Section 7 Alien-Sigix | -1/Access Alien-Sigix | -1/Command Resources | -11 -10 -10 -9 -9 -8 -7 -7 -7 -7 -7 -6 -6 -6 -6 -6 -5 -5 -5 -5 -5 -5 -5 -4 -4 -4 -4 -4 -3 -3 -3 -2 -2 -2 -1 -1 ----------- Run | Scr Mat Min Mat Min Mat Fac Low Low Zio Dee Pro Fac Low Low Dat Pro Fac Was Fac Upp Upp Zhi Pro Fac Upp Upp War Pro Res Qua Res Tes Sec Acc Com Matter Collected 8826 | 187 130 277 829 123 1336 537 152 180 69 484 10 313 90 67 . 96 318 . 397 272 306 30 120 200 40 95 70 245 . 41 199 130 69 404 1010 Remotely 400 | . . 226 174 . . . . . . . . . . . . . . . . . . . . . . . . . . . . . . . . Salvage Created 13178 | . 180 10 955 159 2125 333 205 137 . 260 73 882 61 . . 83 414 . 406 220 284 213 119 348 . 138 . 485 . . 333 148 69 1536 3002 Parts 613 | . 14 . 56 12 125 15 8 5 . 18 1 32 2 . . 6 32 . 36 1 12 4 3 11 . 4 . 17 . . 6 6 3 84 100 Haulers Intercepted 22 | . . . 4 . 6 2 . . . . . 5 . . . . . . . . . . 1 . . . . . . . 2 . . 2 . Recyclers Shooed 8 | . . . . . 2 3 . . . . . . . . . . 1 . 1 . . . . . . . . . . . . . . 1 . Parts Field Recycled . | . . . . . . . . . . . . . . . . . . . . . . . . . . . . . . . . . . . . Retrieved Matter . | . . . . . . . . . . . . . . . . . . . . . . . . . . . . . . . . . . . . Parts Self-Destructed 67 | . . . . . . . 8 4 . . 1 . 4 . . 5 . . . 9 14 3 2 . . 7 2 8 . . . . . . . Prevented 28 | . . . . . . . . 8 . . . . . 3 . . . . . 2 . . 3 . . . 12 . . . . . . . . Kills | -11 -10 -10 -9 -9 -8 -7 -7 -7 -7 -7 -6 -6 -6 -6 -6 -5 -5 -5 -5 -5 -5 -5 -4 -4 -4 -4 -4 -3 -3 -3 -2 -2 -2 -1 -1 ------- Run | Scr Mat Min Mat Min Mat Fac Low Low Zio Dee Pro Fac Low Low Dat Pro Fac Was Fac Upp Upp Zhi Pro Fac Upp Upp War Pro Res Qua Res Tes Sec Acc Com Combat Hostiles Destroyed 244 | . 4 2 23 5 43 4 3 5 . 4 1 4 2 . . 1 8 . 3 3 7 . . 1 . 5 . 15 . . . . 1 21 79 Melee 13 | . . . . . 2 . . . . . . . 1 . . . 1 . 3 . 2 . . 1 . 1 . 1 . . . . . . 1 Guns 77 | . 4 . . . 26 . . . . . 1 3 . . . 1 1 . . . . . . . . . . . . . . . . 12 29 Cannons 41 | . . 2 21 5 3 . 3 . . 1 . 1 . . . . . . . . . . . . . . . . . . . . 1 . 4 AOE 113 | . . . 2 . 12 4 . 5 . 3 . . 1 . . . 6 . . 3 5 . . . . 4 . 14 . . . . . 9 45 Classes Destroyed 27 | . 1 1 7 . 3 1 . 1 . 1 . . . . . 1 1 . . . . . . . . . . . . . . . . 3 7 Worker 17 | . . . 3 . 4 . . . . . . 1 . . . . 4 . 1 . . . . 2 . . . . . . . . . 1 1 Builder 8 | . . . . . 1 2 . . . . . 1 . . . . . . 1 . . . . . . . . . . . . . . 3 . Tunneler 2 | . . . . . . . . . . . . . . . . . 1 . 1 . . . . . . . . . . . . . . . . Hauler 22 | . . . 4 . 6 2 . . . . . 5 . . . . . . . . . . 1 . . . . . . . 2 . . 2 . Recycler 9 | . . . . . . 2 . . . . . . . . . . 1 . 1 . . . . 2 . . . . . . 1 1 . . 1 Carrier 1 | . . . . . . . . . . . . . . . . . . . . . . . . . . . . . . . . . . . 1 Minesweeper 3 | . . . . . . . . 1 . . . . . . . 1 . . . . . . 1 . . . . . . . . . . . . Mechanic 6 | . . . . . 1 . . . . . . . . . . . . . . . . . . . . . . . . . . . . 1 4 Operator 9 | . . . 1 . 2 . . . . . . . . . . . . . 1 . . . . . . . . . . . . 1 . 4 . Watcher 15 | . . . 1 . 5 4 . . . . . 1 . . . . 2 . 2 . . . . . . . . . . . . . . . . Swarmer 55 | . . 2 . . 8 4 . 2 . . . . 1 . . . 6 . . . 3 . . . . 5 . 15 . . . . . 5 4 Cutter 2 | . . . . . . . . . . . . . . . . . . . . . . . . . . . . . . . . . . 2 . Saboteur 3 | . . . . . . . . . . . . . . . . . . . . . . . . . . . . . . . . . . . 3 Grunt 85 | . 4 . 15 3 24 . 1 3 . . . 3 1 . . . 1 . . 3 1 . . . . . . . . . . . . 6 20 Brawler 11 | . . . 1 1 . . 1 . . . . . . . . . . . . . 1 . . . . . . . . . . . . . 7 Duelist 8 | . . . 1 1 2 . . . . . . . . . . . . . . . . . . . . . . . . . . . . . 4 Protector 6 | . . . . . . . . . . . . . . . . . . . . . . . . . . . . . . . . . . . 6 Sentry 21 | . . . 6 . 8 . 1 . . . 1 1 . . . . . . 1 . . . . 1 . . . . . . . . . 1 1 Hunter 11 | . . . . . 1 . . . . . . . . . . . . . 2 . 1 . . . . . . . . . . . . 2 5 Programmer 20 | . . . . . . . . . . . . . . . . 1 1 . . . 1 . . . . . . . . . . . 1 3 13 Heavy 1 | . . . . . . . . . . . . . . . . . . . . . . . . . . . . . . . . . . 1 . M Guard 2 | . . . . . . . . . . . . . . . . . . . . . . . . . . . . . . . . . . . 2 Striker 7 | . . . . . . . . . . . . . . . . . . . . . . . . . . . . . . . . . . 1 6 Executioner 5 | . . . . . . . . . . . . . . . . . . . . . . . . . . . . . . . . . . . 5 Z-Technician 5 | . . . . . . . . . . 5 . . . . . . . . . . . . . . . . . . . . . . . . . Z-Light 4 | . . . . . . . . . . 4 . . . . . . . . . . . . . . . . . . . . . . . . . Assembled 1 | . . . . . . . . . . . . . . . . . . . . . . . . . . . . . . . . . . . 1 Mutant 1 | . . . . . . . . . . . . . . . . . . . . . . . . . . . . . . . . . . . 1 Knight 1 | . . . . . . . . . . . . . . . . . . . . . . . . . . . . . . . . . . . 1 Best Kill Streak 33 | . 2 2 4 3 6 5 1 5 . 5 1 3 1 . . 1 10 . 4 2 3 . 1 2 . 5 . 10 . . 1 1 1 9 33 Combat Bots Only 30 | . 2 2 3 3 4 2 1 5 . 3 1 3 1 . . 1 6 . 3 2 3 . . 1 . 5 . 10 . . . . 1 7 30 Max Kills in Single Turn 10 | . 1 1 2 1 5 2 1 1 . 2 1 1 1 . . 1 10 . 1 1 3 . 1 1 . 4 . 3 . . 1 1 1 4 6 Gunslinging 1 | . . . . . 1 . . . . . . . . . . . . . . . . . . . . . . . . . . . . 1 . Exploded 6 | . . . 1 . 4 1 . 1 . 2 . . 1 . . . 6 . . 1 3 . . . . 4 . 3 . . . . . 3 6 Melee 1 | . . . . . 1 . . . . . . . 1 . . . 1 . 1 . 1 . . 1 . 1 . 1 . . . . . . 1 Uniques/NPCs Destroyed 2 | . . . . . . . . . . 1 . . . . . . . . . . . . . . . . . . . . . . . . 1 Z-Imprinter (-7/Deep Caves) Warlord (-1/Command) Combat | -11 -10 -10 -9 -9 -8 -7 -7 -7 -7 -7 -6 -6 -6 -6 -6 -5 -5 -5 -5 -5 -5 -5 -4 -4 -4 -4 -4 -3 -3 -3 -2 -2 -2 -1 -1 -------- Run | Scr Mat Min Mat Min Mat Fac Low Low Zio Dee Pro Fac Low Low Dat Pro Fac Was Fac Upp Upp Zhi Pro Fac Upp Upp War Pro Res Qua Res Tes Sec Acc Com Damage Taken 12514 | . 111 74 744 47 2555 97 . 145 . 544 91 85 228 . 225 44 419 . 183 32 90 . 327 27 . 88 . 348 . . 205 93 1123 720 3869 Core 2936 | . 23 18 52 . 353 15 . 16 . 100 . 10 49 . 45 23 59 . 30 16 31 . 137 27 . 16 . 67 . . 51 22 325 207 1244 Absorbed by Shields 49 | . . . . . 4 . . . . . . . . . . . . . . . . . . . . . . . . . . . . 45 . Redirected to Core 189 | . . . . . . . . . . . . . . . . . . . . . . . . . . . . . . . . 22 167 . . Redirected to Shielding 117 | . . . . . . . . . . 63 . . . . . . . . . . . . . . . 9 . 45 . . . . . . . Regen/Repaired (Parts) 1872 | . . . 100 . 11 42 . . . . . 358 . . . . 81 . 41 26 21 . 29 26 27 3 6 126 54 . 26 25 575 295 . Core Remaining (%) 79 | 100 . 83 . 87 35 . . . . . 81 . . . . 85 . . . . . . 72 . . . . 90 . 100 . . 59 . . Volleys Fired 665 | . 13 5 76 11 126 7 14 9 . 23 . 11 2 3 7 . 3 . 21 7 9 . 1 8 2 15 8 12 8 6 9 4 24 87 134 Largest 3 | . 2 2 2 2 2 2 1 1 . 1 . 1 1 1 1 . 1 . 1 1 1 . 1 1 1 1 1 1 1 1 1 1 2 3 3 Hottest 300 | . 40 70 70 70 58 56 66 30 . 66 . 66 43 60 60 . 66 . 80 43 98 . 98 98 98 98 98 98 98 98 98 120 200 300 300 Shots Fired 1152 | . 26 10 150 22 241 8 14 9 . 23 7 20 2 3 7 10 11 . 21 7 9 . 1 8 2 15 8 12 8 6 9 4 25 177 277 Gun 695 | . 26 . . . 215 2 . . . 8 7 19 . 3 7 10 8 . . . . . . . . . . . . . . . 2 173 215 Cannon 365 | . . 10 148 22 16 . 14 . . 11 . 1 . . . . 2 . 21 . 5 . 1 8 2 14 8 3 8 6 9 4 23 . 29 Launcher 92 | . . . 2 . 10 6 . 9 . 4 . . 2 . . . 1 . . 7 4 . . . . 1 . 9 . . . . . 4 33 Special . | . . . . . . . . . . . . . . . . . . . . . . . . . . . . . . . . . . . . Kinetic 552 | . 26 10 148 22 231 2 14 . . 11 7 10 . . . 10 10 . 20 . 2 . . . . . . . . . . . . . 29 Thermal 90 | . . . . . . . . . . . . . . . . . . . 1 . 3 . 1 8 2 14 8 3 8 6 9 4 23 . . Explosive 92 | . . . 2 . 10 6 . 9 . 4 . . 2 . . . 1 . . 7 4 . . . . 1 . 9 . . . . . 4 33 Electromagnetic . | . . . . . . . . . . . . . . . . . . . . . . . . . . . . . . . . . . . . Slashing 390 | . . . . . . . . . . . . . . . . . . . . . . . . . . . . . . . . . 2 173 215 Phasic 28 | . . . . . . . . . . 8 . 10 . 3 7 . . . . . . . . . . . . . . . . . . . . Robot Hit Streak 30 | . 21 22 9 5 30 3 9 2 . 2 4 7 1 . . 6 12 . 17 . 4 . . . . 5 . 2 . . . . 8 10 9 Robot Miss Streak 6 | . 1 4 4 2 4 1 1 2 . 5 1 1 1 . . 1 . . 2 . 1 . . . . . . 4 . . . . . 6 5 Penetration Max 1 | . . . . . 1 . . . . . . . . . . . . . 1 . . . . . . . . . . . . . . 1 1 Secondary Targets 5 | . . . . . 2 . . . . . . . . . . . . . . . . . . . . . . . . . . . . 3 . Max Gunslinging Chain 1 | . . . . . 1 . . . . . . . . . . . . . . . . . . . . . . . . . . . . 1 . Autonomous 34 | . . . . . . . . . . . 7 9 . . . 10 8 . . . . . . . . . . . . . . . . . . Shots Hit Robots 712 | . 22 4 101 16 182 12 12 3 . 13 6 25 5 1 2 10 20 . 20 1 6 4 3 10 . 2 . 8 . . 9 3 7 56 149 Core Hits 584 | . 8 2 37 7 104 11 4 12 . 15 2 13 8 1 . 3 21 . 9 10 10 1 2 4 . 4 . 28 . . 3 2 1 47 215 Critical Kills 8 | . 1 . . . 1 . 4 . . 1 . 1 . . . . . . . . . . . . . . . . . . . . . . . Critical Parts Destroyed 18 | . . . . . 2 . 6 1 . 3 . . . . . . . . 5 . 1 . . . . . . . . . . . . . . Critical Strikes 47 | . 1 . 1 1 4 . 10 1 . 6 . 2 . . . 1 . . 6 . 1 1 . . . . . . . . . . . 1 11 Destroy 26 | . 1 . . . 3 . 10 . . 4 . 1 . . . . . . 6 . 1 . . . . . . . . . . . . . . Blast 6 | . . . 1 1 1 . . . . . . . . . . . . . . . . . . . . . . . . . . . . . 3 Smash 1 | . . . . . . . . 1 . . . . . . . . . . . . . . . . . . . . . . . . . . . Sever 9 | . . . . . . . . . . . . . . . . . . . . . . . . . . . . . . . . . . 1 8 Impale 5 | . . . . . . . . . . 2 . 1 . . . 1 . . . . . 1 . . . . . . . . . . . . . Melee Attacks 286 | . . . . . . 14 8 7 1 5 . 22 7 4 31 1 47 . 31 1 5 4 4 13 5 2 . 5 . 1 20 13 34 . 1 Impact 30 | . . . . . . 14 8 7 1 . . . . . . . . . . . . . . . . . . . . . . . . . . Slashing . | . . . . . . . . . . . . . . . . . . . . . . . . . . . . . . . . . . . . Piercing 252 | . . . . . . . . . . 5 . 22 7 4 30 1 46 . 31 1 5 4 4 12 5 2 . 5 . 1 19 13 34 . 1 Sneak Attacks 43 | . . . . . . 5 . 1 . 5 . 7 . . 2 1 3 . 7 . 1 . 2 5 . . . . . . 2 2 . . . Combat Hostiles 2 | . . . . . . . . . . . . . . . . . . . . . 1 . . 1 . . . . . . . . . . . Follow-up Attacks . | . . . . . . . . . . . . . . . . . . . . . . . . . . . . . . . . . . . . Damage Inflicted 55663 | . 233 83 2085 365 4933 1829 190 529 . 1086 166 1627 452 28 147 482 2496 . 1353 804 909 472 337 865 . 426 . 2213 . . 578 278 369 6124 24204 Guns 17117 | . 233 . . . 2936 . . . . 66 166 264 . . . 337 342 . . . . . . . . . . . . . . . . 3937 8836 Cannons 4097 | . . 78 1810 285 237 . 190 . . 103 . 18 . . . . . . 149 . 59 . . . . 35 . . . . . . 318 . 815 Explosions 24880 | . . . 219 . 1618 900 . 320 . 403 . . 202 . . . 1429 . . 642 647 . . . . 342 . 1610 . . . . . 2010 14538 Melee 9085 | . . . . . . 929 . 209 . 514 . 1345 250 28 147 145 725 . 1204 162 203 472 337 865 . 49 . 603 . . 578 278 42 . . Ramming 484 | . . 5 56 80 142 . . . . . . . . . . . . . . . . . . . . . . . . . . . 9 177 15 Kinetic 8022 | . 233 78 1810 285 3173 . 190 . . 103 166 282 . . . 337 342 . 149 . 59 . . . . . . . . . . . . . 815 Thermal 532 | . . . . . . . . . . . . . . . . . . . . . . . . . . 35 . . . . . . 318 179 . Explosive 24701 | . . . 219 . 1618 900 . 320 . 403 . . 202 . . . 1429 . . 642 647 . . . . 342 . 1610 . . . . . 1831 14538 Electromagnetic . | . . . . . . . . . . . . . . . . . . . . . . . . . . . . . . . . . . . . Impact 1138 | . . . . . . 929 . 209 . . . . . . . . . . . . . . . . . . . . . . . . . . . Slashing 12773 | . . . . . . . . . . . . . . . . . . . . . . . . . . . . . . . . . . 3937 8836 Piercing 7947 | . . . . . . . . . . 514 . 1345 250 28 147 145 725 . 1204 162 203 472 337 865 . 49 . 603 . . 578 278 42 . . Phasic 66 | . . . . . . . . . . 66 . . . . . . . . . . . . . . . . . . . . . . . . . Highest Corruption 12 | . . . . . . 1 . . . . . . . . . . 1 8 8 . . . . . . . . . . . . . 5 1 12 Average Corruption 4 | . . . . . . 1 . . . . . . . . . . 1 8 3 . . . . . . . . . . . . . 3 1 8 Corruption Purged 11 | . . . . . . 2 . . . . . . . . . . 1 . 8 . . . . . . . . . . . . . . . . Corruption Blocked 42 | . . . . . . . . . . . . . . . . . . . . . . . . . . . . . . . . 40 . . 2 Effects 70 | . . . . . . 3 . . . . . . . . . . 2 1 25 . . . . . . . . . . . . . 1 . 38 Message Errors 19 | . . . . . . . . . . . . . . . . . . . 11 . . . . . . . . . . . . . . . 8 Matter Fused 17 | . . . . . . 1 . . . . . . . . . . . . 6 . . . . . . . . . . . . . 1 . 9 Heat Flow Errors 9 | . . . . . . 1 . . . . . . . . . . 1 . 3 . . . . . . . . . . . . . . . 4 Energy Discharges 6 | . . . . . . . . . . . . . . . . . . . 2 . . . . . . . . . . . . . . . 4 Parts Rejected 1 | . . . . . . . . . . . . . . . . . 1 . . . . . . . . . . . . . . . . . . Data Loss (minor) 7 | . . . . . . . . . . . . . . . . . . 1 3 . . . . . . . . . . . . . . . 3 Data Loss (major) 1 | . . . . . . . . . . . . . . . . . . . . . . . . . . . . . . . . . . . 1 Misfires 4 | . . . . . . . . . . . . . . . . . . . . . . . . . . . . . . . . . . . 4 Alerts 2 | . . . . . . 1 . . . . . . . . . . . . . . . . . . . . . . . . . . . . 1 Misdirections 2 | . . . . . . . . . . . . . . . . . . . . . . . . . . . . . . . . . . . 2 Weapon Failures 2 | . . . . . . . . . . . . . . . . . . . . . . . . . . . . . . . . . . . 2 Overload Shots . | . . . . . . . . . . . . . . . . . . . . . . . . . . . . . . . . . . . . Overflow Damage 3519 | . . . 23 6 34 482 18 209 . 274 . 370 27 . 87 . 220 . 172 45 67 423 49 148 . 78 . 96 . . 135 . 15 107 434 Projectiles 153 | . . . 23 . . . 18 . . . . . . . . . . . . . 21 . . . . 19 . . . . . . 15 . 57 Explosions 626 | . . . . . 34 25 . . . 13 . . 9 . . . 47 . . . . . . . . 35 . 2 . . . . . 84 377 Melee 2740 | . . . . 6 . 457 . 209 . 261 . 370 18 . 87 . 173 . 172 45 46 423 49 148 . 24 . 94 . . 135 . . 23 . Knockbacks 31 | . . 1 13 4 4 2 3 . . . . . . . . . . . 1 . . . . . . . . . . . . . . . 3 Impact 3 | . . . . . 1 2 . . . . . . . . . . . . . . . . . . . . . . . . . . . . . Kinetic 26 | . . 1 13 4 2 . 2 . . . . . . . . . . . 1 . . . . . . . . . . . . . . . 3 Secondary 2 | . . . . . 1 . 1 . . . . . . . . . . . . . . . . . . . . . . . . . . . . Self-Inflicted Damage 613 | . . . . . 218 35 . 64 . . . . 46 . . . 54 . . . . . . . . 31 . . . . . . . 67 98 Shots 14 | . . . . . 4 1 . 2 . . . . 1 . . . 1 . . . . . . . . 1 . . . . . . . 1 3 Rammed 24 | . 1 1 7 6 9 . . . . . . . . . . . . . . . . . . . . . . . . . . . . . . Targets Rammed 43 | . 1 1 8 6 16 . . . . . . . . . . . . . . . . . . . . . . . . . . . 1 8 2 Kicked 14 | . . . . . 3 . . . . . . . . . . . . . . . . . . . . . . . . . . . 1 8 2 Crushed 5 | . . . 1 . 4 . . . . . . . . . . . . . . . . . . . . . . . . . . . . . . Highest Temperature 373 | . 12 45 141 138 153 129 88 . . 166 9 85 5 22 14 . 218 . 235 9 162 . 59 60 40 132 68 40 . . 84 120 265 373 192 Average Temperature 50 | . 6 23 41 65 39 71 33 . . 39 9 24 3 14 8 . 75 . 67 4 50 . 25 28 20 48 27 17 . . 38 54 76 105 52 Received Heat Transfer 2066 | . 60 . 288 24 1017 . . 27 . 135 36 33 63 . . . 24 . 18 . . . 27 . . . . . . . . . 9 35 270 Effects 1 | . . . . . . . . . . . . . . . . . . . . . . . . . . . . . . . . . . 1 . Energy Bleed 1 | . . . . . . . . . . . . . . . . . . . . . . . . . . . . . . . . . . 1 . Siege Activations . | . . . . . . . . . . . . . . . . . . . . . . . . . . . . . . . . . . . . Robots Corrupted . | . . . . . . . . . . . . . . . . . . . . . . . . . . . . . . . . . . . . Combat Hostiles . | . . . . . . . . . . . . . . . . . . . . . . . . . . . . . . . . . . . . Parts Fried 6 | . . . . . . 4 . 1 . 1 . . . . . . . . . . . . . . . . . . . . . . . . . Impact Corruptions 20 | . . . . 1 . 14 1 2 . . . . . . . . . . . . . . . . . . . . . . . . . 2 . Robots Melted . | . . . . . . . . . . . . . . . . . . . . . . . . . . . . . . . . . . . . Combat Hostiles . | . . . . . . . . . . . . . . . . . . . . . . . . . . . . . . . . . . . . Parts Melted 3 | . . . . . . . . . . 2 . . . . . . . . . . . . . . . . . . . . . . . 1 . Heat Transferred 422 | . . . . . . . . . . . . . . . . . . . . . . . . . . 50 . . . . . . 222 150 . Parts Sabotaged . | . . . . . . . . . . . . . . . . . . . . . . . . . . . . . . . . . . . . Parts Stolen 1 | . . . . . . . . . . . . . . 1 . . . . . . . . . . . . . . . . . . . . . Parts Stripped . | . . . . . . . . . . . . . . . . . . . . . . . . . . . . . . . . . . . . Power Chain Reactions . | . . . . . . . . . . . . . . . . . . . . . . . . . . . . . . . . . . . . Missiles Intercepted . | . . . . . . . . . . . . . . . . . . . . . . . . . . . . . . . . . . . . Alert | -11 -10 -10 -9 -9 -8 -7 -7 -7 -7 -7 -6 -6 -6 -6 -6 -5 -5 -5 -5 -5 -5 -5 -4 -4 -4 -4 -4 -3 -3 -3 -2 -2 -2 -1 -1 ------- Run | Scr Mat Min Mat Min Mat Fac Low Low Zio Dee Pro Fac Low Low Dat Pro Fac Was Fac Upp Upp Zhi Pro Fac Upp Upp War Pro Res Qua Res Tes Sec Acc Com Peak Influence 5506 | . 116 65 381 268 273 250 . . . . . 142 . . . . 326 54 125 . . . . 215 . . . . 91 148 182 135 1600 3270 5506 Initial 2092 | . . . 25 148 . 69 . . . . . 12 . . . . 21 24 37 . . . . 44 . . . . 74 18 2 102 5 1100 2092 Average 328 | . 48 14 106 84 103 100 . . . . . 39 . . . . 82 42 40 . . . . 111 . . . . 25 57 118 55 111 2342 3285 Maximum Alert Level 5 | . . . 1 1 1 1 . . . . . . . . . . 1 . . . . . . 1 . . . . . . . . 5 5 5 Low Security (%) 85 | 100 100 100 89 85 93 88 . . . . . 100 . . . . 97 100 100 . . . . 74 . . . . 100 100 100 100 90 . . Level 1 5 | . . . 10 14 6 11 . . . . . . . . . . 2 . . . . . . 25 . . . . . . . . 8 . . Level 2 . | . . . . . . . . . . . . . . . . . . . . . . . . . . . . . . . . . . . . Level 3 . | . . . . . . . . . . . . . . . . . . . . . . . . . . . . . . . . . . 3 . Level 4 . | . . . . . . . . . . . . . . . . . . . . . . . . . . . . . . . . . . 10 . Level 5 . | . . . . . . . . . . . . . . . . . . . . . . . . . . . . . . . . . . . 19 High Security 4 | . . . . . . . . . . . . . . . . . . . . . . . . . . . . . . . . . . . 80 Max Security 3 | . . . . . . . . . . . . . . . . . . . . . . . . . . . . . . . . . . 86 . Squads Dispatched 135 | . 3 . 5 . 8 9 . . . . . 11 . . . . 8 . 7 . . . . 2 . . . . 3 1 2 4 2 34 36 Investigation 34 | . 1 . 3 . 5 4 . . . . . 6 . . . . 4 . 4 . . . . 2 . . . . 2 . 1 . . 1 1 Extermination 10 | . . . . . . 2 . . . . . 2 . . . . 1 . 1 . . . . . . . . . 1 1 . 1 1 . . Reinforcement 24 | . 2 . 2 . 2 3 . . . . . 2 . . . . 2 . 2 . . . . . . . . . . . 1 1 1 3 3 Assault 67 | . . . . . 1 . . . . . . 1 . . . . 1 . . . . . . . . . . . . . . 2 . 30 32 Garrison . | . . . . . . . . . . . . . . . . . . . . . . . . . . . . . . . . . . . . Intercept . | . . . . . . . . . . . . . . . . . . . . . . . . . . . . . . . . . . . . Searches Triggered . | . . . . . . . . . . . . . . . . . . . . . . . . . . . . . . . . . . . . Construction Impeded 1 | . . . . . . 1 . . . . . . . . . . . . . . . . . . . . . . . . . . . . . Haulers Reinforced 3 | . . . . . . . . . . . . 1 . . . . 1 . . . . . . . . . . . . . 1 . . . . Active Scanning Responses . | . . . . . . . . . . . . . . . . . . . . . . . . . . . . . . . . . . . . Cargo Convoy Interrupts . | . . . . . . . . . . . . . . . . . . . . . . . . . . . . . . . . . . . . Stealth | -11 -10 -10 -9 -9 -8 -7 -7 -7 -7 -7 -6 -6 -6 -6 -6 -5 -5 -5 -5 -5 -5 -5 -4 -4 -4 -4 -4 -3 -3 -3 -2 -2 -2 -1 -1 --------- Run | Scr Mat Min Mat Min Mat Fac Low Low Zio Dee Pro Fac Low Low Dat Pro Fac Was Fac Upp Upp Zhi Pro Fac Upp Upp War Pro Res Qua Res Tes Sec Acc Com Distress Signals 30 | . 1 . 5 . 3 2 . . . . . 1 . . . . 6 . . . . . . . . . . . . . 2 2 2 5 1 Communications Jammed . | . . . . . . . . . . . . . . . . . . . . . . . . . . . . . . . . . . . . Distress Signals . | . . . . . . . . . . . . . . . . . . . . . . . . . . . . . . . . . . . . Times Spotted 591 | . 10 2 44 5 67 20 1 11 . 10 1 13 3 1 4 1 36 6 7 7 7 . 17 6 . 5 . 17 4 4 5 11 31 74 161 Peak Tracking Total 46 | . 3 1 4 3 7 4 1 4 . 5 1 3 3 1 4 1 9 6 3 3 4 . 5 4 . 5 . 6 4 1 3 4 11 46 30 Tactical Retreats 52 | . 1 . 3 . 2 2 . 1 . 1 . 1 . . . . 6 . . . 1 . 5 . . . . . . . . 2 5 8 14 Traps | -11 -10 -10 -9 -9 -8 -7 -7 -7 -7 -7 -6 -6 -6 -6 -6 -5 -5 -5 -5 -5 -5 -5 -4 -4 -4 -4 -4 -3 -3 -3 -2 -2 -2 -1 -1 ------- Run | Scr Mat Min Mat Min Mat Fac Low Low Zio Dee Pro Fac Low Low Dat Pro Fac Was Fac Upp Upp Zhi Pro Fac Upp Upp War Pro Res Qua Res Tes Sec Acc Com Traps Triggered 8 | . . . . . 2 . . . . . . . . . . . 2 . . . . . . . . . . . . . . 1 . 3 . Indirectly . | . . . . . . . . . . . . . . . . . . . . . . . . . . . . . . . . . . . . Trap Hack Attempts 81 | . . . . . . 54 . . . . . 27 . . . . . . . . . . . . . . . . . . . . . . . Triggered 2 | . . . . . . 1 . . . . . 1 . . . . . . . . . . . . . . . . . . . . . . . Disarmed 7 | . . . . . . 1 . . . . . . . . . . . . 6 . . . . . . . . . . . . . . . . Reprogrammed 61 | . . . . . . 15 . . . . . 4 . . . . 10 . . . . . . 6 . . . . . 10 . 16 . . . Reused 23 | . . . . . 1 6 . 4 . 2 . 1 . . . . 4 . . . . . 3 . . . . . . 1 . 1 . . . Traps Extracted 13 | . . . . 4 2 4 . 1 . 2 . . . . . . . . . . . . . . . . . . . . . . . . . Installed 24 | . . . . . 3 3 . 4 . 6 . . . . . . 1 . . . . . 7 . . . . . . . . . . . . Triggered 28 | . . . . . 1 6 1 4 . . . 1 . 1 . . 4 . . . . . 3 . . . 5 . . 1 . 1 . . . Most Traps Carried 4 | . . . . 4 4 4 4 4 4 4 . . . . . 1 1 . . . . . 3 . . . . . . . . . . . . Machines | -11 -10 -10 -9 -9 -8 -7 -7 -7 -7 -7 -6 -6 -6 -6 -6 -5 -5 -5 -5 -5 -5 -5 -4 -4 -4 -4 -4 -3 -3 -3 -2 -2 -2 -1 -1 ---------- Run | Scr Mat Min Mat Min Mat Fac Low Low Zio Dee Pro Fac Low Low Dat Pro Fac Was Fac Upp Upp Zhi Pro Fac Upp Upp War Pro Res Qua Res Tes Sec Acc Com Machines Disabled 50 | . . 1 1 . 2 3 . 2 . . . . . . 1 . 5 . 1 . . . . . 1 . . . . 2 . 6 10 8 7 Max in Single Turn 4 | . . 1 1 . 1 1 . 1 . . . . . . 1 . 4 . 1 . . . . . 1 . . . . 1 . 1 1 1 2 Garrison Access 10 | . . . . . 1 . . . . . . 1 . . . . 3 . 1 . . . . . . . . . . 1 2 . 1 . . Phase Generator 1 | . . . . . . . . . . . . . . . . . . . . . . . . . . . . . . . . . . . 1 Energy Cycler 1 | . . . . . . . . . . . . . . . . . . . . . . . . . . . . . . . . . . 1 . Machines Sabotaged . | . . . . . . . . . . . . . . . . . . . . . . . . . . . . . . . . . . . . Garrisons Compromised . | . . . . . . . . . . . . . . . . . . . . . . . . . . . . . . . . . . . . Overloaded Fab Kills . | . . . . . . . . . . . . . . . . . . . . . . . . . . . . . . . . . . . . Hacking | -11 -10 -10 -9 -9 -8 -7 -7 -7 -7 -7 -6 -6 -6 -6 -6 -5 -5 -5 -5 -5 -5 -5 -4 -4 -4 -4 -4 -3 -3 -3 -2 -2 -2 -1 -1 --------- Run | Scr Mat Min Mat Min Mat Fac Low Low Zio Dee Pro Fac Low Low Dat Pro Fac Was Fac Upp Upp Zhi Pro Fac Upp Upp War Pro Res Qua Res Tes Sec Acc Com Machines Accessed 173 | . 4 1 11 . 13 16 . 3 . . . 14 1 1 3 . 16 . 16 1 . 4 . 11 . 1 5 . 7 11 2 10 13 4 5 Terminals 90 | . 2 . 7 . 9 7 . 1 . . . 4 1 . . . 9 . 8 . . . . 5 . . . . 4 7 . 7 11 3 5 Fabricators 16 | . . . . . . 3 . . . . . 2 . . . . 1 . 4 . . . . 2 . . . . 1 . 1 2 . . . Repair Stations 14 | . 1 . 1 . 1 2 . . . . . 2 . . . . 3 . 1 . . . . . . . . . 1 1 . 1 . . . Recycling Units 12 | . 1 . 1 . . 3 . . . . . 3 . . . . 1 . 1 . . . . 2 . . . . . . . . . . . Scanalyzers 11 | . . . 2 . 2 . . . . . . 1 . . . . . . 1 . . . . 1 . . . . 1 2 . . 1 . . Garrison Access 12 | . . . . . 1 1 . . . . . 2 . . . . 2 . 1 . . . . 1 . . . . . 1 1 . 1 1 . Total Hacks 550 | . 10 1 41 . 53 44 . 5 . . . 51 2 1 21 . 63 . 52 1 . 16 . 39 . 1 12 . 25 33 4 32 26 7 10 Successful 386 | . 6 1 23 . 27 29 . 5 . . . 37 2 1 21 . 51 . 38 1 . 16 . 24 . 1 12 . 14 24 3 23 22 . 5 Failed 160 | . 4 . 17 . 26 15 . . . . . 14 . . . . 11 . 13 . . . . 15 . . . . 11 8 1 9 4 7 5 Catastrophic 27 | . . . 2 . 7 3 . . . . . . . . . . 1 . 3 . . . . 1 . . . . 1 . . 2 1 5 1 Database Lockouts 4 | . . . 1 . . . . . . . . . . . . . 1 . 1 . . . . . . . . . . 1 . . . . . Manual 239 | . 4 . 22 . 29 22 . . 5 . . 20 . . . . 30 . 24 . . . . 26 . . 1 . 5 19 . 13 11 4 4 Terminals 311 | . 5 . 28 . 34 22 . 3 . . . 17 2 . . . 43 . 28 . . . . 21 . . . . 16 26 . 26 24 6 10 Fabricators 45 | . . . . . . 7 . . . . . 6 . . . . 5 . 11 . . . . 6 . . . . 3 . 3 4 . . . Repair Stations 44 | . 1 . 6 . 4 4 . . . . . 9 . . . . 10 . 2 . . . . . . . . . 4 2 . 2 . . . Recycling Units 41 | . 4 . 3 . . 10 . . . . . 11 . . . . 3 . 3 . . . . 7 . . . . . . . . . . . Scanalyzers 33 | . . . 4 . 11 . . . . . . 4 . . . . . . 5 . . . . 2 . . . . 2 4 . . 1 . . Garrison Access 21 | . . . . . 4 1 . . . . . 4 . . . . 2 . 3 . . . . 3 . . . . . 1 1 . 1 1 . Terminal Hacks 199 | . 4 1 11 . 11 7 . 5 . . . 6 2 1 21 . 26 . 13 1 . 16 . 7 . 1 12 . 6 12 . 16 16 . 4 Record 22 | . . . . . . . . 3 . . . . 2 . 6 . . . . . . 5 . . . . 5 . . . . . . . 1 Part Schematic 19 | . 1 . . . . . . . . . . 1 . . 8 . 2 . 3 . . 3 . . . . . . . 1 . . . . . Robot Schematic 4 | . . . . . . . . . . . . . . . 4 . . . . . . . . . . . . . . . . . . . . Robot Analysis 18 | . 2 . 1 . 3 . . . . . . . . . . . 1 . . . . 4 . . . . . . . 4 . 1 2 . . Prototype ID Bank 24 | . 1 . 3 . 1 . . . . . . . . . 3 . 1 . 1 . . 4 . . . . 6 . . 1 . 1 2 . . Open Door 12 | . . 1 . . . . . 2 . . . . . 1 . . . . . 1 . . . . . 1 1 . . . . . 5 . . Level Access Points 1 | . . . . . . . . . . . . . . . . . . . . . . . . . . . . . . 1 . . . . . Branch Access Points 6 | . . . 1 . . 1 . . . . . . . . . . 1 . 1 . . . . 1 . . . . 1 . . . . . . Emergency Access Points 1 | . . . . . . . . . . . . . . . . . 1 . . . . . . . . . . . . . . . . . . Machine Index 5 | . . . . . . . . . . . . 1 . . . . 1 . 1 . . . . 1 . . . . . . . . 1 . . Terminal Index 2 | . . . 1 . . 1 . . . . . . . . . . . . . . . . . . . . . . . . . . . . . Garrison Index 1 | . . . . . . . . . . . . . . . . . . . . . . . . . . . . . . . . 1 . . . Alert Level 3 | . . . 1 . 1 1 . . . . . . . . . . . . . . . . . . . . . . . . . . . . . Unreport Threat 21 | . . . 1 . 4 . . . . . . . . . . . 6 . . . . . . . . . . . 2 2 . 3 3 . . Locate Traps 11 | . . . 1 . 1 . . . . . . . . . . . 2 . . . . . . 2 . . . . . . . 2 2 . 1 Disarm Traps 1 | . . . . . . . . . . . . . . . . . . . 1 . . . . . . . . . . . . . . . . Reprogram Traps 9 | . . . . . . 1 . . . . . . . . . . 2 . . . . . . 1 . . . . . 2 . 3 . . . Recall Investigation 8 | . . . . . . 1 . . . . . . . . . . 2 . 2 . . . . 1 . . . . 2 . . . . . . Recall Extermination 6 | . . . . . . . . . . . . 2 . . . . 1 . 1 . . . . . . . . . 1 . . 1 . . . Recall Reinforcements 2 | . . . 1 . . . . . . . . . . . . . 1 . . . . . . . . . . . . . . . . . . Recall Assault 2 | . . . . . . . . . . . . . . . . . . . . . . . . . . . . . . . . 2 . . . Hauler Manifests 4 | . . . 1 . 1 1 . . . . . . . . . . 1 . . . . . . . . . . . . . . . . . . Registered Components 3 | . . . . . . . . . . . . . . . . . 1 . 1 . . . . . . . . . . 1 . . . . . Registered Prototypes 3 | . . . . . . . . . . . . . . . . . 1 . 1 . . . . 1 . . . . . . . . . . . Zone Layout 6 | . . . . . . 1 . . . . . 2 . . . . 2 . 1 . . . . . . . . . . . . . . . . Protovariant Controls 2 | . . . . . . . . . . . . . . . . . . . . . . . . . . . . . . . . 2 . . . Activate Exoskeleton 1 | . . . . . . . . . . . . . . . . . . . . . . . . . . . . . . . . . 1 . . Disengage Seal 2 | . . . . . . . . . . . . . . . . . . . . . . . . . . . . . . . . . . . 2 Fabricator Hacks 29 | . . . . . . 4 . . . . . 4 . . . . 3 . 8 . . . . 3 . . . . 3 . 2 2 . . . Network Status 7 | . . . . . . 1 . . . . . . . . . . 1 . 2 . . . . 1 . . . . 1 . . 1 . . . Load Schematic 10 | . . . . . . 1 . . . . . 2 . . . . 1 . 3 . . . . 1 . . . . 1 . 1 . . . . Build 12 | . . . . . . 2 . . . . . 2 . . . . 1 . 3 . . . . 1 . . . . 1 . 1 1 . . . Repair Station Hacks 36 | . . . 6 . 2 4 . . . . . 8 . . . . 8 . 2 . . . . . . . . . 4 . . 2 . . . Scan Component 16 | . . . 3 . 1 1 . . . . . 4 . . . . 3 . 1 . . . . . . . . . 2 . . 1 . . . Repair 15 | . . . 3 . 1 1 . . . . . 4 . . . . 3 . 1 . . . . . . . . . 1 . . 1 . . . Refit 5 | . . . . . . 2 . . . . . . . . . . 2 . . . . . . . . . . . 1 . . . . . . Recycling Unit Hacks 13 | . 1 . 1 . . 3 . . . . . 4 . . . . 1 . 1 . . . . 2 . . . . . . . . . . . Retrieve Components 13 | . 1 . 1 . . 3 . . . . . 4 . . . . 1 . 1 . . . . 2 . . . . . . . . . . . Scanalyzer 26 | . . . . . 11 . . . . . . 4 . . . . . . 5 . . . . 2 . . . . 1 3 . . . . . Insert Component 15 | . . . . . 5 . . . . . . 2 . . . . . . 2 . . . . 2 . . . . 1 3 . . . . . Analyze 11 | . . . . . 6 . . . . . . 2 . . . . . . 3 . . . . . . . . . . . . . . . . Garrison Access Hacks 6 | . . . . . . . . . . . . . . . . . 2 . 1 . . . . . . . . . . 1 1 . 1 . . Seal Access 6 | . . . . . . . . . . . . . . . . . 2 . 1 . . . . . . . . . . 1 1 . 1 . . Unauthorized Hacks 77 | . 1 . 5 . 3 11 . . . . . 11 . . . . 11 . 8 . . . . 10 . . . . . 8 . 3 5 . 1 Terminals 41 | . . . 2 . 3 5 . . . . . 3 . . . . 7 . 3 . . . . 4 . . . . . 7 . 2 4 . 1 Track 6 | . . . . . . . . . . . . . . . . . 1 . . . . . . . . . . . . 2 . . 3 . . Assimilate 10 | . . . . . . 2 . . . . . 1 . . . . 1 . 1 . . . . 1 . . . . . 4 . . . . . Botnet 17 | . . . 2 . 3 2 . . . . . 2 . . . . 2 . 1 . . . . 1 . . . . . 1 . 1 1 . 1 Disrupt 3 | . . . . . . . . . . . . . . . . . 1 . 1 . . . . 1 . . . . . . . . . . . Operators 5 | . . . . . . 1 . . . . . . . . . . 2 . . . . . . 1 . . . . . . . 1 . . . Fabricators 11 | . . . . . . 2 . . . . . 2 . . . . 2 . 2 . . . . 2 . . . . . . . 1 . . . Report 6 | . . . . . . 1 . . . . . 1 . . . . 1 . 1 . . . . 1 . . . . . . . 1 . . . Prioritize 3 | . . . . . . . . . . . . . . . . . 1 . 1 . . . . 1 . . . . . . . . . . . Haulers 1 | . . . . . . 1 . . . . . . . . . . . . . . . . . . . . . . . . . . . . . Recompile 1 | . . . . . . . . . . . . 1 . . . . . . . . . . . . . . . . . . . . . . . Repair Stations . | . . . . . . . . . . . . . . . . . . . . . . . . . . . . . . . . . . . . Recycling Units 17 | . 1 . 1 . . 3 . . . . . 5 . . . . 2 . 2 . . . . 3 . . . . . . . . . . . Reject 4 | . . . . . . . . . . . . 1 . . . . 1 . 1 . . . . 1 . . . . . . . . . . . Recyclers 1 | . . . . . . . . . . . . 1 . . . . . . . . . . . . . . . . . . . . . . . Mask 10 | . . . . . . 3 . . . . . 3 . . . . 1 . 1 . . . . 2 . . . . . . . . . . . Tunnel 2 | . 1 . 1 . . . . . . . . . . . . . . . . . . . . . . . . . . . . . . . . Scanalyzers 4 | . . . 2 . . . . . . . . . . . . . . . . . . . . . . . . . . 1 . . 1 . . Researchers 2 | . . . . . . . . . . . . . . . . . . . . . . . . . . . . . . 1 . . 1 . . Extract 2 | . . . 2 . . . . . . . . . . . . . . . . . . . . . . . . . . . . . . . . Garrison Access 4 | . . . . . . 1 . . . . . 1 . . . . . . 1 . . . . 1 . . . . . . . . . . . Reprogram 4 | . . . . . . 1 . . . . . 1 . . . . . . 1 . . . . 1 . . . . . . . . . . . Data Cores Recovered . | . . . . . . . . . . . . . . . . . . . . . . . . . . . . . . . . . . . . Used . | . . . . . . . . . . . . . . . . . . . . . . . . . . . . . . . . . . . . Hacking Detections 116 | . 3 . 9 . 13 11 . . . . . 12 1 . . . 10 . 12 . . . . 8 . . . . 7 9 1 7 5 4 4 Full Trace Events 20 | . . . . . 3 3 . . . . . 3 . . . . 2 . 4 . . . . 1 . . . . 2 . 1 . . 1 . Feedback Events 3 | . . . . . . 2 . . . . . . . . . . 1 . . . . . . . . . . . . . . . . . . Corruption 3 | . . . . . . 2 . . . . . . . . . . 1 . . . . . . . . . . . . . . . . . . Feedback Blocked . | . . . . . . . . . . . . . . . . . . . . . . . . . . . . . . . . . . . . Robot Schematics Acquired 7 | . . . . . . . . . 3 . . . . . 4 . . . . . . . . . . . . . . . . . . . . Robots Built 3 | . . . . . . . . . . . . . . . . . . . 2 . . . . . . . . . . . . 1 . . . Authchips . | . . . . . . . . . . . . . . . . . . . . . . . . . . . . . . . . . . . . Time 222 | . . . . . . . . . . . . . . . . . . . 111 . . . . . . . . . . . . 111 . . . Total Robot Build Rating 27 | . . . . . . . . . . . . . . . . . . . 18 . . . . . . . . . . . . 9 . . . Part Schematics Acquired 58 | . 1 . 15 . 5 . . . 15 . . 3 . . 8 . 2 . 5 . . 3 . . . . . . . 1 . . . . . Parts Built 12 | . . . . . . 3 . . . . . 2 . . . . 1 . 3 . . . . 1 . . . . 1 . 1 . . . . Authchips 1 | . . . . . . . . . . . . 1 . . . . . . . . . . . . . . . . . . . . . . . Time 629 | . . . . . . 160 . . . . . 152 . . . . 76 . 93 . . . . 64 . . . . 42 . 42 . . . . Total Part Build Rating 80 | . . . . . . 22 . . . . . 10 . . . . 5 . 19 . . . . 8 . . . . 8 . 8 . . . . Parts Repaired 15 | . . . 3 . 1 1 . . . . . 4 . . . . 3 . 1 . . . . . . . . . 1 . . 1 . . . Time 574 | . . . 90 . 108 32 . . . . . 107 . . . . 94 . 51 . . . . . . . . . 38 . . 54 . . . Parts Recycled . | . . . . . . . . . . . . . . . . . . . . . . . . . . . . . . . . . . . . Recycled Matter . | . . . . . . . . . . . . . . . . . . . . . . . . . . . . . . . . . . . . Retrieved Matter . | . . . . . . . . . . . . . . . . . . . . . . . . . . . . . . . . . . . . Retrieved Components 27 | . 2 . 4 . . 6 . . . . . 5 . . . . 2 . 4 . . . . 4 . . . . . . . . . . . Parts Scanalyzed 9 | . . . . . 5 . . . . . . 2 . . . . . . 2 . . . . . . . . . . . . . . . . Part Schematics Acquired 9 | . . . . . 5 . . . . . . 2 . . . . . . 2 . . . . . . . . . . . . . . . . Parts Damaged 1 | . . . . . . . . . . . . . . . . . . . 1 . . . . . . . . . . . . . . . . Bothacking | -11 -10 -10 -9 -9 -8 -7 -7 -7 -7 -7 -6 -6 -6 -6 -6 -5 -5 -5 -5 -5 -5 -5 -4 -4 -4 -4 -4 -3 -3 -3 -2 -2 -2 -1 -1 ------------ Run | Scr Mat Min Mat Min Mat Fac Low Low Zio Dee Pro Fac Low Low Dat Pro Fac Was Fac Upp Upp Zhi Pro Fac Upp Upp War Pro Res Qua Res Tes Sec Acc Com Used RIF Installer . | . . . . . . . . . . . . . . . . . . . . . . . . . . . . . . . . . . . . Robots Hacked 3 | . . . . . . . . . . . . . . . 1 . 1 . . . . . . . . . . . . . 1 . . . . Non-combat 1 | . . . . . . . . . . . . . . . . . 1 . . . . . . . . . . . . . . . . . . Combat 1 | . . . . . . . . . . . . . . . 1 . . . . . . . . . . . . . . . . . . . . Robot Hacks Applied 2 | . . . . . . . . . . . . . . . 1 . 1 . . . . . . . . . . . . . . . . . . parse_system 1 | . . . . . . . . . . . . . . . 1 . . . . . . . . . . . . . . . . . . . . find_chute 1 | . . . . . . . . . . . . . . . . . 1 . . . . . . . . . . . . . . . . . . Manual 1 | . . . . . . . . . . . . . . . . . . . . . . . . . . . . . . . 1 . . . . Relay Couplers Released 4 | . . . . . . . . . . . . 2 . . . . 1 . . . . . . . . . . . . . 1 . . . . Machine Destruction 4 | . . . . . . . . . . . . 2 . . . . 1 . . . . . . . . . . . . . 1 . . . . Fabnet Peak Effective % . | . . . . . . . . . . . . . . . . . . . . . . . . . . . . . . . . . . . . Robots Rewired 4 | . . . . . . . . 2 . . . 1 . . . . . . . . . . . 1 . . . . . . . . . . . Allies Hacked 1 | . . . . . . . . . . . . . . . . . . . . . . . . . 1 . . . . . . . . . . Hacks Repelled . | . . . . . . . . . . . . . . . . . . . . . . . . . . . . . . . . . . . . Allies | -11 -10 -10 -9 -9 -8 -7 -7 -7 -7 -7 -6 -6 -6 -6 -6 -5 -5 -5 -5 -5 -5 -5 -4 -4 -4 -4 -4 -3 -3 -3 -2 -2 -2 -1 -1 -------- Run | Scr Mat Min Mat Min Mat Fac Low Low Zio Dee Pro Fac Low Low Dat Pro Fac Was Fac Upp Upp Zhi Pro Fac Upp Upp War Pro Res Qua Res Tes Sec Acc Com Total Allies 114 | . . . . . . 5 . 2 2 . . 4 . . . . 1 . 3 . . . . 6 . . . . . 3 1 1 . 51 35 Largest Group 17 | . . . . . . 3 . 2 4 4 . 4 1 . . . 1 . 2 2 2 . . 6 4 1 1 1 . 3 1 1 . 17 6 Highest-Rated Group 248 | . . . . . . 48 . 51 243 243 . 96 26 . . . 26 . 138 138 138 . . 245 151 10 10 10 . 97 148 47 . 248 88 Highest-Rated Ally 148 | . . . . . . 26 . 31 96 96 . 29 26 . . . 26 . 69 69 69 . . 47 47 10 10 10 . 45 148 47 . 15 15 Total Orders 55 | . . . . . . 2 . 2 2 2 . 7 . . . . . . 2 14 2 . . 13 2 2 2 . . 3 . . . . . STAY 33 | . . . . . . 1 . 1 1 1 . 4 . . . . . . 1 11 1 . . 7 1 1 1 . . 2 . . . . . FOLLOW 22 | . . . . . . 1 . 1 1 1 . 3 . . . . . . 1 3 1 . . 6 1 1 1 . . 1 . . . . . Ally Attacks 370 | . . . . . . 11 . . . 44 . 20 . . . . . . . 13 18 . . 14 6 . . . . . 14 . . 200 30 Total Damage 7649 | . . . . . . 157 . . . 1027 . 312 . . . . . . . 404 617 . . 473 141 . . . . . 311 . . 3454 753 Kills 35 | . . . . . . 1 . . . 5 . 1 . . . . . . . 5 3 . . 2 . . . . . . 1 . . 17 . Allies Corrupted 3 | . . . . . . . . . . . . . . . . . . . . . 1 . . . 2 . . . . . . . . . . Allies Melted 1 | . . . . . . . . . . . . . . . . . . . . . . . . . . . . . . . 1 . . . . Intel | -11 -10 -10 -9 -9 -8 -7 -7 -7 -7 -7 -6 -6 -6 -6 -6 -5 -5 -5 -5 -5 -5 -5 -4 -4 -4 -4 -4 -3 -3 -3 -2 -2 -2 -1 -1 ------- Run | Scr Mat Min Mat Min Mat Fac Low Low Zio Dee Pro Fac Low Low Dat Pro Fac Was Fac Upp Upp Zhi Pro Fac Upp Upp War Pro Res Qua Res Tes Sec Acc Com Robot Analysis Total 18 | . 2 . 1 . 3 . . . . . . . . . . . 1 . . . . 4 . . . . . . . 4 . 1 2 . . Derelict Logs Recovered 20 | . . 1 . 3 . . 2 2 1 . 1 . 2 2 . 1 . . . 1 2 . . . . 2 . . . . . . . . . Drone Launches . | . . . . . . . . . . . . . . . . . . . . . . . . . . . . . . . . . . . . Drone Recoveries . | . . . . . . . . . . . . . . . . . . . . . . . . . . . . . . . . . . . . Exploration | -11 -10 -10 -9 -9 -8 -7 -7 -7 -7 -7 -6 -6 -6 -6 -6 -5 -5 -5 -5 -5 -5 -5 -4 -4 -4 -4 -4 -3 -3 -3 -2 -2 -2 -1 -1 ------------- Run | Scr Mat Min Mat Min Mat Fac Low Low Zio Dee Pro Fac Low Low Dat Pro Fac Was Fac Upp Upp Zhi Pro Fac Upp Upp War Pro Res Qua Res Tes Sec Acc Com Turns Passed 29749 | 3 815 1096 2696 1332 4548 1721 951 1028 542 1646 159 1302 483 367 321 324 1066 36 1258 772 540 59 518 582 355 411 257 766 326 345 367 473 505 734 1045 Spaces Moved 37150 | 1 318 566 1212 670 1908 2695 1078 1559 1094 2465 307 1641 899 886 291 707 1957 79 1827 1616 1000 144 932 1176 616 1035 652 636 893 791 854 703 956 1339 1647 Core 6 | . . . . . . . . . . . . . . . . . 6 . . . . . . . . . . . . . . . . . . Treads 4337 | 1 318 566 1212 670 1570 . . . . . . . . . . . . . . . . . . . . . . . . . . . . . . Legs 3350 | . . . . . 338 . . . . . . . . . . . . . . . . . . . . . . . . . . . 26 1339 1647 Wheels . | . . . . . . . . . . . . . . . . . . . . . . . . . . . . . . . . . . . . Hover 2212 | . . . . . . . . . . 578 307 1327 . . . . . . . . . . . . . . . . . . . . . . . Flight 27245 | . . . . . . 2695 1078 1559 1094 1887 . 314 899 886 291 707 1951 79 1827 1616 1000 144 932 1176 616 1035 652 636 893 791 854 703 930 . . Fastest Speed 17 | 160 160 160 160 160 160 26 26 17 26 26 48 31 31 34 34 34 27 27 17 27 27 27 17 21 28 28 26 19 31 27 27 24 24 30 30 Average Speed 47 | 160 160 160 160 160 168 28 43 30 26 38 48 45 33 34 34 40 30 27 27 27 28 27 26 26 28 28 27 25 31 29 27 27 27 30 30 Slowest Speed 320 | 160 160 160 240 160 320 101 92 92 26 94 48 240 103 39 34 102 250 27 107 107 107 27 28 28 28 28 28 26 32 32 28 28 30 30 30 Overloaded Moves 141 | . . . . . . . . 2 . . . . . . . . . . 9 . . . 19 1 . . . 4 . 5 . 16 85 . . Propulsion Burnouts . | . . . . . . . . . . . . . . . . . . . . . . . . . . . . . . . . . . . . Robots Hopped 67 | . . . . . . 7 1 . . . . 1 1 . . . 13 4 14 . 1 . 2 3 . . . . 2 1 5 5 6 . 1 Cave-ins Triggered . | . . . . . . . . . . . . . . . . . . . . . . . . . . . . . . . . . . . . Teleports 2 | . . . . . . . . . . . . . . . . . . . . . . . . . . . . . . . . . 1 1 . Exploration Rate (%) 64 | 2 41 95 64 99 86 41 87 91 83 81 57 29 96 83 88 80 42 85 28 97 83 60 58 20 67 77 80 67 19 77 16 75 73 47 41 Regions Visited 35 Branch Regions 23 Pre-discovered Areas 10 | . 1 . 1 1 . . 1 . 1 . . . . . 1 . . . . . . 3 . . . . 1 . . . . . . . . Known Exits Taken 28 | . . 1 1 . 1 1 1 1 1 1 1 1 1 1 1 1 . . 1 1 1 1 1 1 1 1 1 1 1 1 1 1 . . . Unknown Exits Taken 5 | 1 1 . . 1 . . . . . . . . . . . . . . . . . . . . . . . . . . . . 1 1 . Scrap Searched 27 | . . 1 . 1 . . 3 2 2 . . . 3 4 . . . . . 2 1 . 2 . 3 1 . 2 . . . . . . . Spaces Dug 476 | . . . . . . 6 8 2 . 3 . 11 1 6 8 . 25 . 17 85 26 . 2 11 6 27 4 21 5 5 15 6 21 138 17 Terrain Destroyed 1777 | . . . 23 . 142 69 8 56 . 14 6 14 27 6 8 5 69 . 18 110 82 . 2 11 6 27 4 108 5 5 16 6 24 344 562 Melee 96 | . . . . . . 6 8 . . . . 1 1 3 2 . 25 . 15 . 2 . 1 3 4 1 . . . 1 11 3 9 . . Projectile 516 | . . . . . 1 . . . . 6 6 13 . 3 6 5 . . 3 . 3 . 1 8 2 13 4 3 5 4 5 3 15 226 181 AOE 1165 | . . . 23 . 141 63 . 56 . 8 . . 26 . . . 44 . . 110 77 . . . . 13 . 105 . . . . . 118 381 Terrain Rammed . | . . . . . . . . . . . . . . . . . . . . . . . . . . . . . . . . . . . . Walls Destroyed . | . . . . . . . . . . . . . . . . . . . . . . . . . . . . . . . . . . . . Machines Disabled . | . . . . . . . . . . . . . . . . . . . . . . . . . . . . . . . . . . . . Actions | -11 -10 -10 -9 -9 -8 -7 -7 -7 -7 -7 -6 -6 -6 -6 -6 -5 -5 -5 -5 -5 -5 -5 -4 -4 -4 -4 -4 -3 -3 -3 -2 -2 -2 -1 -1 --------- Run | Scr Mat Min Mat Min Mat Fac Low Low Zio Dee Pro Fac Low Low Dat Pro Fac Was Fac Upp Upp Zhi Pro Fac Upp Upp War Pro Res Qua Res Tes Sec Acc Com Total 47510 | 2 601 749 1818 904 2987 3621 1530 2086 1348 3138 318 2148 1066 943 459 742 2337 88 2501 1936 1227 156 1190 1413 784 1135 721 1208 923 895 938 948 1110 1549 1991 Wait 8353 | . 257 156 455 211 846 769 425 487 240 536 10 377 154 31 124 21 289 11 601 298 187 . 213 190 153 80 50 544 13 84 43 213 55 70 160 Move 36990 | . 317 565 1211 669 1907 2680 1075 1558 1093 2464 306 1638 896 885 290 706 1933 72 1800 1615 997 143 927 1169 615 1034 651 635 888 788 844 692 944 1338 1645 Hop 59 | . . . . . . 7 1 . . . . 1 1 . . . 11 2 12 . 1 . 2 3 . . . . 2 1 4 5 5 . 1 Pick Up 184 | . 7 12 20 1 19 10 1 1 . 24 . 18 . 7 2 4 7 1 5 1 2 1 13 3 1 . 1 . 2 4 1 . 9 5 2 Fast Attach 160 | . 2 . 7 1 16 5 . . 7 23 1 7 1 1 . 1 10 . 4 3 1 4 . 5 . . 3 . 4 2 5 9 11 13 14 Attach 67 | . . . 1 . 6 5 . . . 6 . 12 . 5 . 3 6 . 3 . . . 1 1 . . 1 . . 1 1 . 9 4 2 Detach 55 | . 1 . . . 1 7 . . 3 9 . 3 . . . . 6 . . 1 . . . . . . 1 . 1 . 1 1 5 3 12 Swap 282 | 2 . 2 16 3 25 34 5 9 1 4 . 14 4 1 3 3 14 1 17 8 22 . 10 14 8 4 3 12 2 4 5 4 7 7 14 Drop 238 | . 3 8 24 2 22 26 1 1 3 38 1 15 1 6 2 3 10 1 7 2 3 4 12 7 . . 3 . 3 4 5 7 6 6 2 Fire 665 | . 13 5 76 11 126 7 14 9 . 23 . 11 2 3 7 . 3 . 21 7 9 . 1 8 2 15 8 12 8 6 9 4 24 87 134 Melee 286 | . . . . . . 14 8 7 1 5 . 22 7 4 31 1 47 . 31 1 5 4 4 13 5 2 . 5 . 1 20 13 34 . 1 Ram . | . . . . . . . . . . . . . . . . . . . . . . . . . . . . . . . . . . . . Kick 14 | . . . . . 3 . . . . . . . . . . . . . . . . . . . . . . . . . . . 1 8 2 Crush 29 | . 1 1 8 6 13 . . . . . . . . . . . . . . . . . . . . . . . . . . . . . . Escape Stasis 8 | . . . . . . . . . . . . . . . . . . . . . . . . . . . . . . . . . . 8 . Rewire 15 | . . . . . . . . 10 . . . 3 . . . . . . . . . . . . . . . . . . . . . . 2 Trap 105 | . . . . . 3 57 . 4 . 6 . 27 . . . . 1 . . . . . 7 . . . . . . . . . . . . Miscellaneous . | . . . . . . . . . . . . . . . . . . . . . . . . . . . . . . . . . . . . Route ------- -11/Scrapyard -10/Materials -10/Mines (discovered 3 exits: *Mat x2 / [*Exi]) -9/Materials (discovered 3 exits: *Mat x2 / *Min) -9/Mines (discovered 3 exits: *Mat x2 / *Zio) -8/Materials (discovered 3 exits: *Fac x3) -7/Factory (discovered 4 exits: *Fac / Sto / *Low x2) -7/Lower Caves -7/Lower Caves (discovered 2 exits: *Fac / *Zio) -7/Zion (discovered 2 exits: *Dee / [*Pro]) -7/Deep Caves -6/Proximity Caves -6/Factory (discovered 2 exits: Fac / *Low) -6/Lower Caves -6/Lower Caves -6/Data Miner -5/Proximity Caves -5/Factory (discovered 6 exits: *Fac x2 / Upp x2 / Ext x2) -5/Waste -5/Factory (discovered 4 exits: *Upp x2 / Ext x2) -5/Upper Caves -5/Upper Caves (discovered 2 exits: *Fac / *Zhi) -5/Zhirov -4/Proximity Caves -4/Factory (discovered 4 exits: *Res x2 / *Upp x2) -4/Upper Caves -4/Upper Caves (discovered 2 exits: *Res / *War) -4/Warlord -3/Proximity Caves -3/Research (discovered 3 exits: Arm / *Qua x2) -3/Quarantine -2/Research -2/Testing (discovered 2 exits: Acc / *Sec) -2/Section 7 -1/Access (discovered 2 exits: [Sur] / *Com) -1/Command History --------- Turn | Location | Event 4 | -11/Scrapyard | Discovered new exit (range 0) 4 | -11/Scrapyard | Entered Materials 309 | -10/Materials | Build established: Mutant 632 | -10/Materials | Discovered new exit (range 15) 819 | -10/Materials | Entered Mines 823 | -10/Mines | Discovered new exit (range 11) 880 | -10/Mines | Deemed a non-threat by the Exiles lab entrance 882 | -10/Mines | Discovered new exit (range 5) 1125 | -10/Mines | Identified exit to Materials 1245 | -10/Mines | Met a Derelict who couldn't figure out how to use a Trap Extractor 1355 | -10/Mines | Assembled infested the area 1915 | -10/Mines | Entered Materials 1915 | -9/Materials | Evolved 2 slots: Propulsion x1, Utility x1 1932 | -9/Materials | Identified exit to Mines 2095 | -9/Materials | Repaired Imp. Signal Interpreter 2122 | -9/Materials | Repaired Lgt. Treads 2178 | -9/Materials | Repaired Lgt. Treads 2712 | -9/Materials | Discovered new exit (range 3) 2979 | -9/Materials | Central database locked down 3313 | -9/Materials | Discovered new exit (range 10) 4611 | -9/Materials | Entered Mines 4617 | -9/Mines | Met a Derelict bent on vengeance 4877 | -9/Mines | Found a damaged Exp. Sensor Array with a note attached 4882 | -9/Mines | Found Prototype Device 4925 | -9/Mines | Discovered new exit (range 12) 4961 | -9/Mines | A Derelict revealed a hidden shortcut to a safe place 5210 | -9/Mines | Discovered new exit (range 8) 5312 | -9/Mines | Received a Rocket Launcher from a helpful Derelict 5623 | -9/Mines | Learned Materials terminal intel 5943 | -9/Mines | Entered Materials 5943 | -8/Materials | Evolved 2 slots: Utility x2 5944 | -8/Materials | Identified exit to Factory 5945 | -8/Materials | Loaded intel: 12 terminal locations 7217 | -8/Materials | Lost 6 parts (4n1u1w) 7753 | -8/Materials | Core integrity fell below 50% 7998 | -8/Materials | Discovered exit to Factory (range 3) 8107 | -8/Materials | Discovered exit to Factory (range 15) 8519 | -8/Materials | Identified Exp. Sensor Array 8694 | -8/Materials | Repaired Exp. Sensor Array 8807 | -8/Materials | Build established: Hacker-Mutant 10491 | -8/Materials | Entered Factory 10491 | -7/Factory | Evolved 2 slots: Propulsion x1, Utility x1 10578 | -7/Factory | Fabricated Hyp. Mass Driver (x2) 10786 | -7/Factory | Build established: Hacker-Sprinter 10889 | -7/Factory | Discovered new exit (range 16) 10892 | -7/Factory | Identified exit to Storage 10892 | -7/Factory | Identified exit to Lower Caves 12029 | -7/Factory | Repaired Mni. Grenade Launcher 12032 | -7/Factory | Fabricated Exp. Sensor Array (x1) 12212 | -7/Factory | Entered Lower Caves 12983 | -7/Lower Caves | Build established: Hacker-Mutant 13039 | -7/Lower Caves | Learned location of Extension (-5) 13064 | -7/Lower Caves | Discovered new exit (range 16) 13078 | -7/Lower Caves | Learned 4 Factory zone layouts 13161 | -7/Lower Caves | Identified exit to Lower Caves 13163 | -7/Lower Caves | Entered another Lower Caves area 13164 | -7/Lower Caves | Discovered new exit (range 13) 13167 | -7/Lower Caves | Identified exit to Factory 13270 | -7/Lower Caves | Identified exit to Zion 13338 | -7/Lower Caves | Attacked by a faux Warlord 13418 | -7/Lower Caves | Build established: Hacker-Sprinter 13443 | -7/Lower Caves | Learned 4 Factory zone layouts 13676 | -7/Lower Caves | Learned Factory trap positions 13676 | -7/Lower Caves | Learned Armory terminal intel 13676 | -7/Lower Caves | Learned Factory garrison access intel 14114 | -7/Lower Caves | Build established: Hacker-Mutant 14191 | -7/Lower Caves | Entered Zion 14191 | -7/Zion | Accompanied by 2 allies 14218 | -7/Zion | Found Prototype Hackware 14218 | -7/Zion | Identified Exp. System Shield 14225 | -7/Zion | Discovered new exit (range 7) 14262 | -7/Zion | Given the Hacking Drone Bay 14265 | -7/Zion | Learned 8 Factory zone layouts 14298 | -7/Zion | Given A8's code to call for help 14330 | -7/Zion | Learned location of Quarantine (-3) 14393 | -7/Zion | Found CR-A16's Pointy Stick 14397 | -7/Zion | Acquired unknown access codes intercepted by a Zionite 14407 | -7/Zion | Opened final containment barrier to the Deep Caves 14449 | -7/Zion | Found Prototype Processor 14449 | -7/Zion | Identified Exp. Core Analyzer 14450 | -7/Zion | Found Prototype Processor 14450 | -7/Zion | Identified Exp. Target Analyzer 14453 | -7/Zion | Found Prototype Processor 14453 | -7/Zion | Identified Exp. Armor Integrity Analyzer 14477 | -7/Zion | Build established: Hacker-Sprinter 14579 | -7/Zion | Enhanced Grunt warped into view, answering call for help 14579 | -7/Zion | Enhanced Grunt warped into view, answering call for help 14597 | -7/Zion | Discovered new exit (range 3) 14597 | -7/Zion | Saw the warning signs outside the Deep Caves entrance 14598 | -7/Zion | Identified exit to Deep Caves 14733 | -7/Zion | Entered Deep Caves 14733 | -7/Deep Caves | Accompanied by 4 allies 14874 | -7/Deep Caves | Attacked by Z-Imprinter 14886 | -7/Deep Caves | Allies destroyed Z-Imprinter 15162 | -7/Deep Caves | Found Prototype Protection 15162 | -7/Deep Caves | Identified Zio. Heavy Carapace 15278 | -7/Deep Caves | Build established: Sprinter 15429 | -7/Deep Caves | Spotted as-46724 15430 | -7/Deep Caves | Found Prototype Ballistic Gun 15842 | -7/Deep Caves | Found Prototype Device 15842 | -7/Deep Caves | Identified Exp. Thermal Shield 16165 | -7/Deep Caves | Identified AWS/Gauss 16233 | -7/Deep Caves | Found Surveybot 24 Chip 16256 | -7/Deep Caves | Build established: Mutant 16372 | -7/Deep Caves | Discovered new exit (range 9) 16375 | -7/Deep Caves | Identified exit to Proximity Caves 16379 | -7/Deep Caves | Entered Proximity Caves 16381 | -6/Proximity Caves | Attracted the attention of an 0b10 checkpoint 16538 | -6/Proximity Caves | Entered Factory 16538 | -6/Factory | Evolved 2 slots: Utility x2 16539 | -6/Factory | Identified exit to Factory 16540 | -6/Factory | Loaded intel: 81 trap records 16541 | -6/Factory | Loaded intel: 4 garrison access locations 16655 | -6/Factory | Repaired Med. Storage Unit 16688 | -6/Factory | Repaired Hyp. Mass Driver 16831 | -6/Factory | Build established: Hacker-Mutant 17126 | -6/Factory | Repaired Imp. Light Armor Plating 17136 | -6/Factory | Discovered new exit (range 9) 17140 | -6/Factory | Identified exit to Lower Caves 17347 | -6/Factory | Fabricated Biomechanical Wings (x1) 17433 | -6/Factory | Fabricated Biomechanical Wings (x1) 17830 | -6/Factory | Repaired Kinetic Spear 17840 | -6/Factory | Entered Lower Caves 17840 | -6/Lower Caves | Accompanied by 1 ally 17842 | -6/Lower Caves | Attracted the attention of an 0b10 checkpoint 17939 | -6/Lower Caves | Build established: Wizard-Sprinter 17973 | -6/Lower Caves | Identified exit to Lower Caves 18019 | -6/Lower Caves | Learned 8 Factory zone layouts 18271 | -6/Lower Caves | Build established: Wizard-Mutant 18323 | -6/Lower Caves | Entered another Lower Caves area 18355 | -6/Lower Caves | Nuclear Pulse Thruster stolen by Master Thief 18434 | -6/Lower Caves | Discovered new exit (range 7) 18441 | -6/Lower Caves | Learned Factory terminal intel 18480 | -6/Lower Caves | Encountered a Warlord checkpoint 18601 | -6/Lower Caves | Learned Factory stockpile data 18689 | -6/Lower Caves | Identified exit to Data Miner 18690 | -6/Lower Caves | Entered Data Miner 18690 | -6/Data Miner | Discovered new exit (range 6) 18697 | -6/Data Miner | Met Data Miner 18703 | -6/Data Miner | Learned location of Section 7 (-2) 18703 | -6/Data Miner | Acquired the access code to Warlord's prototype stash 18707 | -6/Data Miner | Received God Mode back door access code from Data Miner 18733 | -6/Data Miner | Identified exit to Proximity Caves 18754 | -6/Data Miner | Data Conduit disabled 19011 | -6/Data Miner | Entered Proximity Caves 19335 | -5/Proximity Caves | Entered Factory 19335 | -5/Factory | Evolved 2 slots: Power x1, Propulsion x1 19336 | -5/Factory | Identified exit to Factory 19338 | -5/Factory | Loaded intel: 27 terminal locations 19338 | -5/Factory | Identified exit to Upper Caves 19338 | -5/Factory | Identified exit to Extension 19741 | -5/Factory | Spotted B-75 Beast 19764 | -5/Factory | Repaired Biomechanical Wings 19818 | -5/Factory | Lost 4 parts (1p2n1u) 19865 | -5/Factory | Central database locked down 19906 | -5/Factory | Discovered exit to Factory (range 4) 19944 | -5/Factory | Repaired Mic. Fission Core 19973 | -5/Factory | Repaired Imp. Propulsion Shielding 20269 | -5/Factory | Build established: Wizard-Sprinter 20339 | -5/Factory | Fabricated Lgt. Regenerative Plating (x1) 20401 | -5/Factory | Sucked down chute 20401 | -5/Factory | Entered Waste 20407 | -5/Waste | Spotted C-40 Crusher 20411 | -5/Waste | Spotted C-40 Crusher 20411 | -5/Waste | Spotted C-40 Crusher 20416 | -5/Waste | EMP discharged 20418 | -5/Waste | Spotted C-40 Crusher 20419 | -5/Waste | Spotted C-40 Crusher 20419 | -5/Waste | Spotted C-40 Crusher 20421 | -5/Waste | Discovered new exit (range 10) 20423 | -5/Waste | Identified exit to Factory 20437 | -5/Waste | Entered Factory 20584 | -5/Factory | Fabricated Lrn. Terrain Scanner (x1) 20836 | -5/Factory | Repaired Broken Adv. Cloaking Device 21026 | -5/Factory | Fabricated Adv. System Restoration Module (x2) 21086 | -5/Factory | Central database locked down 21160 | -5/Factory | Build established: Hacker-Sprinter 21679 | -5/Factory | Fabricated H-88 Terminator (x2) 21695 | -5/Factory | Entered Upper Caves 21695 | -5/Upper Caves | Accompanied by 2 allies 21806 | -5/Upper Caves | Encountered a Warlord checkpoint 22265 | -5/Upper Caves | Identified exit to Upper Caves 22467 | -5/Upper Caves | Entered another Upper Caves area 22467 | -5/Upper Caves | Accompanied by 2 allies 22470 | -5/Upper Caves | Discovered exit to Factory (range 9) 22611 | -5/Upper Caves | P-70 Sage assimilated allied Terminator 6a 22806 | -5/Upper Caves | Learned location of 1 exit from Factory 22834 | -5/Upper Caves | Discovered new exit (range 9) 22836 | -5/Upper Caves | Identified exit to Zhirov 23007 | -5/Upper Caves | Entered Zhirov 23007 | -5/Zhirov | Discovered new exit (range 3) 23012 | -5/Zhirov | Met Zhirov 23019 | -5/Zhirov | Learned location of Testing (-2) 23019 | -5/Zhirov | Learned location of Command (-1) 23020 | -5/Zhirov | Zhirov requested help retrieving the SGEMP Prototype 23025 | -5/Zhirov | Found Alien Artifact 23025 | -5/Zhirov | Identified Integrated Dissipator 23025 | -5/Zhirov | Installed Integrated Dissipator, increased core heat dissipation (+20) 23055 | -5/Zhirov | Found Alien Artifact 23066 | -5/Zhirov | Identified exit to Proximity Caves 23066 | -5/Zhirov | Entered Proximity Caves 23580 | -4/Proximity Caves | Discovered exit to Factory (range 15) 23584 | -4/Proximity Caves | Entered Factory 23584 | -4/Factory | Evolved 2 slots: Propulsion x1, Utility x1 23585 | -4/Factory | Identified exit to Upper Caves 23586 | -4/Factory | Identified exit to Research 23813 | -4/Factory | Identified Transdimensional Reconstructor 23893 | -4/Factory | Build established: Hacker-Scout 23965 | -4/Factory | Fabricated Impulse Thruster Array (x1) 24104 | -4/Factory | Discovered exit to Research (range 15) 24166 | -4/Factory | Entered Upper Caves 24166 | -4/Upper Caves | Accompanied by 4 allies 24317 | -4/Upper Caves | Encountered a Warlord checkpoint 24453 | -4/Upper Caves | Found Alien Artifact 24470 | -4/Upper Caves | Discovered new exit (range 24) 24511 | -4/Upper Caves | Identified exit to Upper Caves 24521 | -4/Upper Caves | Entered another Upper Caves area 24521 | -4/Upper Caves | Accompanied by 1 ally 24632 | -4/Upper Caves | Discovered new exit (range 22) 24640 | -4/Upper Caves | Identified exit to Warlord 24642 | -4/Upper Caves | Learned Research terminal intel 24778 | -4/Upper Caves | Encountered a Warlord checkpoint 24843 | -4/Upper Caves | Discovered exit to Research (range 22) 24858 | -4/Upper Caves | Learned location of 1 exit from Research 24932 | -4/Upper Caves | Entered Warlord 24932 | -4/Warlord | Accompanied by 1 ally 24958 | -4/Warlord | Learned Armory terminal intel 24958 | -4/Warlord | Learned Research scanalyzer intel 24958 | -4/Warlord | Learned 4 Command zone layouts 25070 | -4/Warlord | Met Warlord 25073 | -4/Warlord | Opened Warlord's prototype stash 25085 | -4/Warlord | Found Ghost Barrier 25095 | -4/Warlord | Warlord's base attacked by MAIN.C 25137 | -4/Warlord | Opened side exit 25166 | -4/Warlord | Discovered new exit (range 14) 25169 | -4/Warlord | Identified exit to Proximity Caves 25189 | -4/Warlord | Entered Proximity Caves 25189 | -3/Proximity Caves | Accompanied by 1 ally 25371 | -3/Proximity Caves | Received a Behemoth hack from an annoying Tinkerer 25465 | -3/Proximity Caves | Build established: Hacker-Sprinter 25574 | -3/Proximity Caves | Destroyed 10 combat bots 25955 | -3/Proximity Caves | Entered Research 25955 | -3/Research | Evolved 2 slots: Propulsion x1, Utility x1 25956 | -3/Research | Identified exit to Quarantine 25957 | -3/Research | Loaded intel: 21 terminal locations 25958 | -3/Research | Loaded intel: 6 scanalyzer locations 25971 | -3/Research | Identified exit to Armory 25990 | -3/Research | Identified Dimensional Node Initializer 26003 | -3/Research | Fabricated Impulse Thruster Array? 26049 | -3/Research | Build established: Hacker-Scout 26123 | -3/Research | Found Fusion Bomb Launcher 26241 | -3/Research | Repaired Imp. Propulsion Shielding 26281 | -3/Research | Entered Quarantine 26315 | -3/Quarantine | Identified exit to Research 26322 | -3/Quarantine | Found Alien Artifact 26360 | -3/Quarantine | Build established: Wizard-Scout 26360 | -3/Quarantine | Identified Subatomic Replicator 26437 | -3/Quarantine | Found Alien Artifact 26483 | -3/Quarantine | Identified Core Reset Matrix 26496 | -3/Quarantine | Central database locked down 26571 | -3/Quarantine | Found Alien Artifact 26592 | -3/Quarantine | Identified Phase Redirector 26626 | -3/Quarantine | Entered Research 26626 | -2/Research | Warlord forces began assault on 0b10 26626 | -2/Research | Evolved 2 slots: Propulsion x1, Utility x1 26644 | -2/Research | Discovered new exit (range 21) 26667 | -2/Research | Spotted B-90 Cyclops 26674 | -2/Research | Fabricated Impulse Thruster Array? 26690 | -2/Research | Befriended a Behemoth using the annoying Tinkerer's hack 26705 | -2/Research | Found Prototype Device 26705 | -2/Research | Identified Exp. ECM Suite 26736 | -2/Research | Research machine network offline 26850 | -2/Research | Identified exit to Testing 26993 | -2/Research | Entered Testing 27043 | -2/Testing | Found Prototype Ballistic Gun 27043 | -2/Testing | Identified Hyp. Multirail 27082 | -2/Testing | Discovered new exit (range 23) 27088 | -2/Testing | Found Prototype Energy Gun 27088 | -2/Testing | Identified Tachyon Dispersion Ray 27119 | -2/Testing | Spotted PY-8RQRD7P9IO 27163 | -2/Testing | Protovariant out of control (PP-52RV0HUG5C) 27163 | -2/Testing | Unleashed a protovariant (PP-52RV0HUG5C) 27220 | -2/Testing | Repaired Exp. Sensor Array 27243 | -2/Testing | Protovariant out of control (PY-8RQRD7P9IO) 27243 | -2/Testing | Unleashed a protovariant (PY-8RQRD7P9IO) 27269 | -2/Testing | Found Prototype Energy Gun 27269 | -2/Testing | Identified Hyp. EM Gauss Rifle 27323 | -2/Testing | Spotted Fortress 27378 | -2/Testing | Discovered new exit (range 5) 27379 | -2/Testing | Identified exit to Section 7 27421 | -2/Testing | Fabricated C-65 Expert (x1) 27466 | -2/Testing | Entered Section 7 27471 | -2/Section 7 | Used Core Reset Matrix 27475 | -2/Section 7 | Sensed 20 artifacts in vicinity 27555 | -2/Section 7 | Found Integrated Reactor 27555 | -2/Section 7 | Installed Integrated Reactor, increased core energy generation (+10) 27560 | -2/Section 7 | Discovered new exit (range 24) 27595 | -2/Section 7 | Found Integrity Redistributor 27595 | -2/Section 7 | Used Integrity Redistributor, redistributed integrity from core (-36) 27640 | -2/Section 7 | Found Integrated Mediator 27653 | -2/Section 7 | Installed Integrated Mediator, increased core attachment efficiency. 27684 | -2/Section 7 | Found Prototype Processor 27684 | -2/Section 7 | Identified Spectral Analyzer 27686 | -2/Section 7 | Initialized slip node 27732 | -2/Section 7 | Spotted B-99 Colossus 27745 | -2/Section 7 | Found Integrity Redistributor 27747 | -2/Section 7 | Found Integrity Redistributor 27758 | -2/Section 7 | Found LRC Matter Compressor 27758 | -2/Section 7 | Installed LRC Matter Compressor, increased matter storage capacity (+125) 27775 | -2/Section 7 | Found Core Expander 27775 | -2/Section 7 | Installed Core Expander, added new Utility slot 27806 | -2/Section 7 | Used Integrity Redistributor, redistributed integrity from core (-59) 27811 | -2/Section 7 | Found Terrabomb 27814 | -2/Section 7 | Found Hpw. Transdimensional Reconstructor 27816 | -2/Section 7 | Found Transdimensional Reconstructor 27912 | -2/Section 7 | Found Sigix Sheargun 27914 | -2/Section 7 | Found Sigix Sheargun 27934 | -2/Section 7 | Spotted Executioner 27934 | -2/Section 7 | Spotted Executioner 27944 | -2/Section 7 | Integrated with Sigix Exoskeleton 27947 | -2/Section 7 | Warped through subspace to slip node 27971 | -2/Section 7 | Entered Access 27971 | -1/Access | Evolved 2 slots: Utility x1, Weapon x1 27976 | -1/Access | Emitted hypermatrix ping 27981 | -1/Access | Assembled emerged from beneath the floor 28114 | -1/Access | Assembled emerged from beneath the floor 28148 | -1/Access | Used Subatomic Replicator to replicate Transdimensional Reconstructor 28167 | -1/Access | Found Prototype Hackware 28167 | -1/Access | Identified Exp. System Shield 28219 | -1/Access | Spotted Striker 28245 | -1/Access | Build established: Alien-Sigix 28250 | -1/Access | Destroyed Striker 28255 | -1/Access | Used Integrity Redistributor, redistributed integrity from core (-52) 28292 | -1/Access | Destroyed 7 combat bots 28325 | -1/Access | Energy Cycler disabled 28365 | -1/Access | Assembled emerged from beneath the floor 28368 | -1/Access | Spotted Investigator 28369 | -1/Access | Scanned by Researcher 28370 | -1/Access | Spotted Striker 28378 | -1/Access | Warped through subspace 28379 | -1/Access | Discovered new exit (range 18) 28481 | -1/Access | Assembled emerged from beneath the floor 28506 | -1/Access | Assembled emerged from beneath the floor 28541 | -1/Access | Assembled emerged from beneath the floor 28642 | -1/Access | Discovered new exit (range 16) 28651 | -1/Access | Assembled emerged from beneath the floor 28668 | -1/Access | Spotted Executioner 28668 | -1/Access | Spotted Striker 28687 | -1/Access | Spotted Striker 28688 | -1/Access | Spotted Striker 28705 | -1/Access | Entered Command 28710 | -1/Command | Emitted hypermatrix ping 28715 | -1/Command | Assembled emerged from beneath the floor 28737 | -1/Command | Disengaged cave seal 28749 | -1/Command | Welcomed Warlord to Command 28750 | -1/Command | Attacked by Warlord 28750 | -1/Command | Spotted 4N-1S5(K) 28752 | -1/Command | Disengaged cave seal 28753 | -1/Command | Spotted 9G-8CD(K) 28805 | -1/Command | Assembled emerged from beneath the floor 28838 | -1/Command | Assembled emerged from beneath the floor 28888 | -1/Command | Destroyed 4N-1S5(K) 28900 | -1/Command | Spotted M Guard 28900 | -1/Command | Spotted Combat Programmer 28900 | -1/Command | Spotted Combat Programmer 28904 | -1/Command | High security lockdown imminent 28916 | -1/Command | Warlord destroyed during the assault 28916 | -1/Command | Destroyed Warlord 28939 | -1/Command | Spotted M Guard 28941 | -1/Command | System corruption reached 10% 28950 | -1/Command | Sigix Exoskeleton integrity reduced to 80% 28984 | -1/Command | High security lockdown engaged 29013 | -1/Command | Destroyed M Guard 29026 | -1/Command | Destroyed M Guard 29026 | -1/Command | All MAIN.C guards destroyed 29085 | -1/Command | Core integrity fell below 50% 29125 | -1/Command | Destroyed 15 combat bots 29148 | -1/Command | Assembled emerged from beneath the floor 29209 | -1/Command | Assembled emerged from beneath the floor 29248 | -1/Command | Found Prototype Processor 29248 | -1/Command | Identified Exp. Melee Analysis Suite 29332 | -1/Command | Spotted Striker 29349 | -1/Command | Destroyed Striker 29351 | -1/Command | Spotted Executioner 29373 | -1/Command | Spotted Executioner 29379 | -1/Command | Phase Generator disabled 29408 | -1/Command | Destroyed Executioner 29414 | -1/Command | Destroyed Executioner 29485 | -1/Command | Destroyed 13 combat bots 29512 | -1/Command | Spotted Executioner 29512 | -1/Command | Spotted Striker 29516 | -1/Command | Sigix Exoskeleton integrity reduced to 60% 29520 | -1/Command | Spotted Striker 29522 | -1/Command | Spotted Striker 29538 | -1/Command | Destroyed Striker 29556 | -1/Command | Destroyed Striker 29562 | -1/Command | Destroyed Striker 29571 | -1/Command | Destroyed Executioner 29574 | -1/Command | Core integrity fell below 20% 29579 | -1/Command | Spotted Executioner 29580 | -1/Command | Spotted Executioner 29580 | -1/Command | Spotted Striker 29580 | -1/Command | Spotted Striker 29586 | -1/Command | Destroyed Striker 29587 | -1/Command | Sigix Exoskeleton integrity reduced to 40% 29588 | -1/Command | Destroyed Executioner 29606 | -1/Command | Destroyed Striker 29608 | -1/Command | Destroyed Executioner 29616 | -1/Command | Spotted Executioner 29634 | -1/Command | Destroyed 30 combat bots 29720 | -1/Command | Spotted Alpha 7 29721 | -1/Command | Spotted Striker 29722 | -1/Command | Spotted Alpha 7 29730 | -1/Command | Spotted Striker 29733 | -1/Command | Spotted Executioner 29743 | -1/Command | Spotted Executioner 29743 | -1/Command | Spotted Executioner 29746 | -1/Command | Spotted Executioner 29746 | -1/Command | Spotted Executioner 29746 | -1/Command | Spotted B-99 Colossus 29746 | -1/Command | Spotted B-99 Colossus 29750 | -1/Command | Destroyed by B-99 Colossus with Multirail Last Messages --------------- 29734_ M-36 Artificer unfolds itself. 29734_ Slug penetrates Wall. 29737_ C-30 ARC bursts open, deploying its payload. 29737_ G-73 Enforcer unfolds itself. 29737_ B-74 Champion unfolds itself. 29737_ G-73 Enforcer unfolds itself. 29737_ M-36 Artificer unfolds itself. 29741_ E-15 Imp destroyed. 29742_ C-30 ARC bursts open, deploying its payload. 29742_ Executioner unfolds itself. 29742_ Striker unfolds itself. 29742_ Executioner unfolds itself. 29745_ Slug penetrates Wall. 29747_ Wall collapses. 29747_ Slug penetrates Wall. 29747_ Slug penetrates Door. 29747_ Slug penetrates Wall. 29749_ Slug penetrates B-99 Colossus. 29750_ Penetrated by Slug. 29750_ Slug penetrates Reinforced Barrier. Map ----- +----------------------------------------------------+ | ####+#######+###################???????????????? | | ### ##################??????????????? | | ### ###################?????????????? | | ### ####################????????????? | | ### [ #####################???????????? | | ### #####################???????????? | | ####+####+##+########################??????????? | | #### ### #########################?????????? | | #### ### #########################?????????? | | #### T"# ####"####################?????????? | | #### ""# K ################????????? | | #### ###=%######" ################????????? | | ### ######; # ##############????????? | | " K EpKhp ################????????? | | ###"%####h#######p ################????????? | | ### "# b ####; [ #################???????? | | ### # E ##### ################????????? | | + # ##### E #################???????? | | ### # !!! ##### E # ###############???????? | | " ### # !!! #####7 #################???????? | | %"### # !! /EE + ;########### ???????? | | % ### # 7##### ##### #### ???????? | | # ## ; # # # # ??????? | | + #### BB ""???????? | | # # BB " ???????? | | # # X " ???????? | | # # BB ^ " ???????? | | # # BB " ???????? | | # # # "????????? | | ###""##; # # # # # ????????? | | ! #### ### #### ????????? | | ################## ????????? | | #######################???????? | | "" ########################??????? | | ""T"" ########################??????? | | "" "" + ########## ?????? | | g # ########### | | # ###### + | | ####### % # !! ###### #### | | ####### + !! ######+########+### | | ####### # ##### # | | ####### # ##### #### | | ####### ###### ######### #### | | ####### ####+###### # ###### #### | | ####### # # # # ##############+#### | | ####### # ## # # ############## ### | | ##### " " +! # ############ | | ####### # " # ## #############= ### | | ####### # % " # ## ################### | | ####### " "# ################### | +----------------------------------------------------+ Best States ------------- Heat Dissipation 124 Energy Generation 74 Energy Capacity 365 Matter Stores 425 Matter Capacity 425 Sight Range 16 Robot Scan Range 20 Terrain Scan Range 24 Terrain Scan Density 2010 Cloak Strength 4 Base Temperature (-) 200 Armor Coverage 1200 Resistance: KI 50 Resistance: TH 50 Resistance: EX 50 Resistance: EM 50 Resistance: I 50 Resistance: S 50 Resistance: P 50 Propulsion Shielding 66 Evasion (%) 74 Targeting Accuracy 24 Launcher Accuracy 30 Target Analysis 8 Armor Integrity Analysis 50 Recoil Reduction 3 Salvage Targeting 3 Offensive Hacking 46 Defensive Hacking 26 Authchip Count 1 Trap Extractor Capacity 6 Item Schematics ----------------- None Robot Schematics ------------------ None Fabricated ------------ Hyp. Mass Driver | x2 | -7/Factory | Preloaded Exp. Sensor Array | x1 | -7/Factory Biomechanical Wings | x1 | -6/Factory | Authchip Biomechanical Wings | x1 | -6/Factory Lgt. Regenerative Plating | x1 | -5/Factory Lrn. Terrain Scanner | x1 | -5/Factory Adv. System Restoration Module | x2 | -5/Factory H-88 Terminator | x2 | -5/Factory Impulse Thruster Array | x1 | -4/Factory Impulse Thruster Array | x1 | -3/Research Impulse Thruster Array | x1 | -2/Research C-65 Expert | x1 | -2/Testing | Preloaded Alien Tech Used ----------------- Integrated Dissipator Phase Redirector Core Reset Matrix Integrated Reactor Integrity Redistributor Integrated Mediator Dimensional Node Initializer LRC Matter Compressor Core Expander Sigix Exoskeleton Sigix Sheargun High-powered Transdimensional Reconstructor Subatomic Replicator Transdimensional Reconstructor Achievements -------------- None Challenges ------------ None Game ------ Seed AluminumGravitonDesublimator Manual? 0 Play Time 05:48:07 Cumulative 1075.1 hours Start 2022.03.04 @ 02:17:39 End 2022.03.05 @ 14:55:05 Sessions 9 Manual Loads 0 Difficulty Rogue Special Mode None Game No. 747 Rogue 743 Adventurer 4 Explorer 0 Win Type - Total 116 Types 88/9/8/5/2/0/0/2/2 Lore% 94 Gallery% 97 Achievement% 96 Wizard Run 0 Options --------- ASCII 0 Keyboard 1 Movement Vi Keybinds 0 Fullscreen 0 Font 16/Terminus Map View 76x50 Tactical HUD 1 Map Filters NONE Filters NONE Steam 1 RUN: d5c43501-0848-4470-8202-dbad80d4f9f4